{"text_format":"1","workbook":"xlsx","n_sheets":6,"sheets":["Form-0","Form-1","Form-2","Form-3","EXAMPLES","DON'T DELETE autorisktable"],"not_rendered":{"charts":0,"images":0,"macros":1,"external_links":0,"defined_names":6,"comments":2,"pivot_tables":0},"unopened":[],"bounds":{"document_bytes":16777216,"sheet_cells":100000,"rows_first":2000,"rows_last":500,"rows_between":2000,"halvings":0,"cell_chars":16384,"cell_head_chars":4096},"cells_cut":0,"cells_raw":0,"read":"whole","date_system":"1900"}

{"sheet":"Form-0","index":0,"n_rows":43,"n_cols":5,"rows_kept":43,"cut":false,"hidden":false,"merged":[[0,1,0,3],[2,4,2,5],[3,4,3,5],[4,4,4,5],[5,4,5,5],[6,4,6,5],[7,4,7,5],[25,2,25,5],[26,2,26,5],[27,2,27,5],[9,2,9,5],[11,2,11,5],[19,2,19,5],[20,2,20,5],[13,2,13,5],[10,2,10,5],[39,2,39,5],[33,2,33,5],[34,2,34,5],[35,2,35,5],[36,2,36,5],[28,2,28,5],[12,2,12,5],[21,2,21,5],[22,2,22,5],[23,2,23,5],[24,2,24,5],[18,2,18,5],[41,1,41,3],[42,1,42,3],[14,2,14,5],[15,2,15,5],[16,2,16,5],[17,2,17,5],[40,1,40,3],[37,2,37,5],[38,2,38,5],[29,2,29,5],[30,2,30,5],[31,2,31,5],[32,2,32,5]]}
[null,"Form 0 : Additional information for HI RISK characteristics"]
[]
[null,{"$f":"'Form-1'!A3","v":"1. Part Number"},"Part Name","Serial Number","FAI Report Number"]
[null,{"$f":"'Form-1'!A4","v":"iex:INSPECTIONXPERT/INSPECTION_SHEET/PROJECTPROPERTIES/PROJECTPROPERTY[Name='Part Number']"},{"$f":"'Form-1'!B4","v":"iex:INSPECTIONXPERT/INSPECTION_SHEET/PROJECTPROPERTIES/PROJECTPROPERTY[Name='Part Name']"},{"$f":"'Form-1'!C4","v":"iex:INSPECTIONXPERT/INSPECTION_SHEET/PROJECTPROPERTIES/PROJECTPROPERTY[Name='Serial Number']"},{"$f":"'Form-1'!D4:E4","v":0}]
[null,"Part Revision Level","6. Drawing Number","7. Drawing revision level","8. Additional Changes"]
[null,{"$f":"'Form-1'!A6","v":"iex:INSPECTIONXPERT/INSPECTION_SHEET/PROJECTPROPERTIES/PROJECTPROPERTY[Name='Part Revision']"},{"$f":"'Form-1'!B6","v":"iex:INSPECTIONXPERT/INSPECTION_SHEET/PROJECTPROPERTIES/PROJECTPROPERTY[Name='Drawing Number']"},{"$f":"'Form-1'!C6","v":"iex:INSPECTIONXPERT/INSPECTION_SHEET/PROJECTPROPERTIES/PROJECTPROPERTY[Name='Drawing Revision']"},{"$f":"'Form-1'!D6:E6","v":0}]
[null,"9. Manufacturing Process\n Reference","10. Organization Name","11. Supplier Code","12. P.O. Number & Line Item"]
[null,{"$f":"'Form-1'!A8","v":"iex:INSPECTIONXPERT/INSPECTION_SHEET/PROJECTPROPERTIES/PROJECTPROPERTY[Name='Manufacturing process reference']"},{"$f":"'Form-1'!B8","v":"iex:INSPECTIONXPERT/INSPECTION_SHEET/PROJECTPROPERTIES/PROJECTPROPERTY[Name='Organization name']"},{"$f":"'Form-1'!C8","v":"iex:INSPECTIONXPERT/INSPECTION_SHEET/PROJECTPROPERTIES/PROJECTPROPERTY[Name='Supplier Code']"},{"$f":"'Form-1'!D8:E8","v":0}]
[null,"HI RISK CHARACTERISTIC","ACTIONS AGREED TO FOR HIGH RISK (or justification for no action)"]
["ex1","example CHAR# 45","Prepare Gage R&R report after first 10 pieces (est. target date 4/30/09) "]
["ex2","example CHAR# 54","ESTABLISH KPC-M -- contact P&W SQAR & SQE "]
["ex3","example CHAR# 62","Go-NoGo gage will not be used - measure by CMM program (J.Doe program 5/13/09)"]
["ex4","example CHAR# 99","No action required - Operation sheets specify targeting off-nominal to prolong life of tool"]
[]
[]
[]
[]
[]
[]
[]
[]
[]
[]
[]
[]
[]
[]
[]
[]
[]
[]
[]
[]
[]
[]
[]
[]
[]
[]
[]
[null,"Signature",null,null,"Date"]
[null,"Reviewed by",null,null,"Date"]
[null,"Customer Approval",null,null,"Date"]

{"sheet":"Form-1","index":1,"n_rows":43,"n_cols":4,"rows_kept":43,"cut":false,"hidden":false,"merged":[[0,0,0,4],[1,0,1,2],[2,3,2,4],[3,3,3,4],[8,2,8,4],[9,2,9,4],[10,0,10,4],[11,0,11,4],[4,3,4,4],[5,3,5,4],[6,3,6,4],[7,3,7,4],[16,3,16,4],[17,3,17,4],[18,3,18,4],[19,3,19,4],[12,3,12,4],[13,3,13,4],[14,3,14,4],[15,3,15,4],[24,3,24,4],[25,3,25,4],[26,3,26,4],[27,3,27,4],[20,3,20,4],[21,3,21,4],[22,3,22,4],[23,3,23,4],[32,3,32,4],[33,3,33,4],[34,3,34,4],[35,3,35,4],[28,3,28,4],[29,3,29,4],[30,3,30,4],[31,3,31,4],[40,0,40,2],[41,0,41,2],[42,0,42,2],[36,3,36,4],[37,3,37,4],[38,0,38,4],[39,0,39,4]]}
["SAE AS9102 Revision A"]
["              Form 1 : Part Number Accountability"]
["1. Part Number","2. Part Name","3. Serial Number","4. FAI Report Number"]
["iex:INSPECTIONXPERT/INSPECTION_SHEET/PROJECTPROPERTIES/PROJECTPROPERTY[Name='Part Number']","iex:INSPECTIONXPERT/INSPECTION_SHEET/PROJECTPROPERTIES/PROJECTPROPERTY[Name='Part Name']","iex:INSPECTIONXPERT/INSPECTION_SHEET/PROJECTPROPERTIES/PROJECTPROPERTY[Name='Serial Number']","iex:INSPECTIONXPERT/INSPECTION_SHEET/PROJECTPROPERTIES/PROJECTPROPERTY[Name='FAI Report Number']"]
["5. Part Revision Level","6. Drawing Number","7. Drawing revision level","8. Additional Changes"]
["iex:INSPECTIONXPERT/INSPECTION_SHEET/PROJECTPROPERTIES/PROJECTPROPERTY[Name='Part Revision']","iex:INSPECTIONXPERT/INSPECTION_SHEET/PROJECTPROPERTIES/PROJECTPROPERTY[Name='Drawing Number']","iex:INSPECTIONXPERT/INSPECTION_SHEET/PROJECTPROPERTIES/PROJECTPROPERTY[Name='Drawing Revision']","iex:INSPECTIONXPERT/INSPECTION_SHEET/PROJECTPROPERTIES/PROJECTPROPERTY[Name='Additional changes']"]
["9. Manufacturing Process\n Reference","10. Organization Name","11. Supplier Code","12. P.O. Number & Line Item"]
["iex:INSPECTIONXPERT/INSPECTION_SHEET/PROJECTPROPERTIES/PROJECTPROPERTY[Name='Manufacturing process reference']","iex:INSPECTIONXPERT/INSPECTION_SHEET/PROJECTPROPERTIES/PROJECTPROPERTY[Name='Organization name']","iex:INSPECTIONXPERT/INSPECTION_SHEET/PROJECTPROPERTIES/PROJECTPROPERTY[Name='Supplier Code']","iex:INSPECTIONXPERT/INSPECTION_SHEET/PROJECTPROPERTIES/PROJECTPROPERTY[Name='P.O. number']"]
["13. Detail FAI","14. Full FAI\n     \n\nPartial FAI","Baseline Part Number including revision level"]
["     Assembly FAI","Reason for partial FAI:","iex:INSPECTIONXPERT/@PartNumberDashRev"]
["a) if above part number is a detail part only, go to Field 19\nb) if above part number is an assembly, go to the :\"INDEX\" section below."]
["INDEX of part number or sub-assembly number required to make the assembly noted above."]
["15. Part Number","16. Part Name","17. Part Serial Number","18. FAI Report Number"]
["iex:INSPECTIONXPERT/INSPECTION_SHEET/BILLOFMATERIAL/BOMITEM/@PartNumber","iex:INSPECTIONXPERT/INSPECTION_SHEET/BILLOFMATERIAL/BOMITEM/@PartName","iex:INSPECTIONXPERT/INSPECTION_SHEET/BILLOFMATERIAL/BOMITEM/@SerialNumber","iex:INSPECTIONXPERT/INSPECTION_SHEET/BILLOFMATERIAL/BOMITEM/@FAIReportNumber"]
[]
[]
[]
[]
[]
[]
[]
[]
[]
[]
[]
[]
[]
[]
[]
[]
[]
[]
[]
[]
[]
[]
[]
[]
["1) Signature indicates that all characteristics are accounted for; meet drawing requirements or are properly documented for disposition."]
["2) Also indicate if the FAI is complete per Section 5.4:              FAI complete                 FAI Not Complete"]
["19. Signature",null,null,"20. Date"]
["21. Reviewed by",null,null,"22. Date"]
["23. Customer Approval",null,null,"24. Date"]

{"sheet":"Form-2","index":2,"n_rows":47,"n_cols":6,"rows_kept":47,"cut":false,"hidden":false,"merged":[[4,1,4,2],[4,3,4,4],[36,1,36,5],[37,1,37,5],[0,0,0,5],[1,0,1,5],[2,0,2,3],[3,1,3,2],[3,3,3,4],[38,1,38,5],[39,1,39,5],[40,1,40,5],[41,1,41,5],[46,1,46,2],[42,1,42,5],[43,1,43,5],[44,1,44,5],[45,0,45,5]]}
["SAE AS9102 Revision A"]
["Form 2: Product Accountability - Raw Material, Specification and Special Process (es),"]
["Functional Testing"]
["1. Part Number","2. Part Name",null,"3. Serial Number",null,"4. FAI Report\nNumber"]
[{"$f":"'Form-1'!A4","v":"iex:INSPECTIONXPERT/INSPECTION_SHEET/PROJECTPROPERTIES/PROJECTPROPERTY[Name='Part Number']"},{"$f":"'Form-1'!B4","v":"iex:INSPECTIONXPERT/INSPECTION_SHEET/PROJECTPROPERTIES/PROJECTPROPERTY[Name='Part Name']"},null,{"$f":"'Form-1'!C4","v":"iex:INSPECTIONXPERT/INSPECTION_SHEET/PROJECTPROPERTIES/PROJECTPROPERTY[Name='Serial Number']"}]
["5. Material or Process\nName","6. Specification\nNumber","7. Code","8. Special Process\nSupplier Code","9. Customer\nApproval\nVerification\n(Yes/No/Na)","10. Certificate of\nConformance\nNumber"]
["iex:INSPECTIONXPERT/INSPECTION_SHEET/SPECIFICATIONS/SPECIFICATION/@Type","iex:INSPECTIONXPERT/INSPECTION_SHEET/SPECIFICATIONS/SPECIFICATION/@Spec","iex:INSPECTIONXPERT/INSPECTION_SHEET/SPECIFICATIONS/SPECIFICATION/@Code","iex:INSPECTIONXPERT/INSPECTION_SHEET/SPECIFICATIONS/SPECIFICATION/@SupplierCode","iex:INSPECTIONXPERT/INSPECTION_SHEET/SPECIFICATIONS/SPECIFICATION/@CustomerApprovalVerification","iex:INSPECTIONXPERT/INSPECTION_SHEET/SPECIFICATIONS/SPECIFICATION/@CertificateNumber"]
[]
[]
[]
[]
[]
[]
[]
[]
[]
[]
[]
[]
[]
[]
[]
[]
[]
[]
[]
[]
[]
[]
[]
[]
[]
[]
[]
[]
[]
["11. Functional Test\nProcedure Number","12. Acceptance report number, if applicable"]
[]
[]
[]
[]
[]
[]
[]
[]
["13. Comments"]
["14. Prepared By",null,null,"15 Date"]

{"sheet":"Form-3","index":3,"n_rows":35,"n_cols":32,"rows_kept":35,"cut":false,"hidden":false,"merged":[[34,13,34,22],[6,14,6,15],[31,10,31,11],[32,10,32,11],[26,10,26,11],[27,10,27,11],[28,10,28,11],[15,10,15,11],[16,10,16,11],[17,10,17,11],[18,10,18,11],[20,10,20,11],[21,10,21,11],[19,10,19,11],[23,10,23,11],[24,10,24,11],[34,0,34,8],[34,9,34,12],[25,10,25,11],[33,0,33,12],[30,10,30,11],[29,10,29,11],[22,10,22,11],[9,10,9,11],[10,10,10,11],[11,10,11,11],[12,10,12,11],[13,10,13,11],[14,10,14,11],[8,10,8,11],[3,13,3,15],[6,16,6,18],[6,19,6,21],[4,0,4,4],[4,6,4,8],[4,9,4,10],[4,11,4,12],[5,0,5,4],[5,6,5,8],[5,9,5,10],[5,11,5,12],[6,0,6,4],[6,6,6,8],[6,9,6,12],[7,10,7,11]]}
[null,null,null,null,null,null,null,null,null,null,null,null,null,null,null,null,null,null,{"$f":"+IF(AND(F1=\"\",G1=\"\"),\"\",IF(F1=\"\",H1/G1,(2*ABS(F1/2+G1/2-H1)/(G1-F1))))","v":""},null,null,null,null,{"$f":"+IF(AND(K1=\"\",L1=\"\"),\"\",IF(K1=\"\",M1/L1,(2*ABS(K1/2+L1/2-M1)/(L1-K1))))","v":""}]
[]
[]
[null,null,null,null,null,null,null,null,null,null,null,null,null,"CLICK HERE FOR NOTES"]
["1. Part Number",null,null,null,null,null,"2. Part Name",null,null,"3. Serial Number",null,"4. FAI Report",null,"ADDITIONAL INFORMATION FOR FAI REPORT",null,null,null,null,{"$f":"CONCATENATE(\"FAIR \",L6)","v":"FAIR iex:INSPECTIONXPERT/INSPECTION_SHEET/PROJECTPROPERTIES/PROJECTPROPERTY[Name='FAI Report Number']"},null,null,null,{"$f":"+L5","v":"4. FAI Report"}]
["iex:INSPECTIONXPERT/INSPECTION_SHEET/PROJECTPROPERTIES/PROJECTPROPERTY[Name='Part Number']",null,null,null,null,null,"iex:INSPECTIONXPERT/INSPECTION_SHEET/PROJECTPROPERTIES/PROJECTPROPERTY[Name='Part Name']",null,null,"iex:INSPECTIONXPERT/INSPECTION_SHEET/PROJECTPROPERTIES/PROJECTPROPERTY[Name='Serial Number']",null,"iex:INSPECTIONXPERT/INSPECTION_SHEET/PROJECTPROPERTIES/PROJECTPROPERTY[Name='FAI Report Number']",null,{"$f":"CONCATENATE(\"p/n \",Text12)","v":"p/n iex:INSPECTIONXPERT/INSPECTION_SHEET/PROJECTPROPERTIES/PROJECTPROPERTY[Name='Part Number']"},null,{"$f":"G6","v":"iex:INSPECTIONXPERT/INSPECTION_SHEET/PROJECTPROPERTIES/PROJECTPROPERTY[Name='Part Name']"},null,{"$f":"CONCATENATE(\"s/n \",+J6)","v":"s/n iex:INSPECTIONXPERT/INSPECTION_SHEET/PROJECTPROPERTIES/PROJECTPROPERTY[Name='Serial Number']"}]
["Dimensional Characteristic Accountability",null,null,null,null,null,"Inspection / Test Results",null,null,null,null,null,null,null,"RISK LEVEL  ",null,"other info (25 pc study)",null,null,"CONTAINMENT"]
["5. Char No.","6. Reference Location ","7. Characteristic Designator","8.\nGDT Requirement/ Comments","8. Requirement (min) \nLeave blank for GDT","8. Requirement (max)","9. Results","10. Designed Tooling","11. Non-Conformance Number","14. FAI Inspection Measuring Equipment","14. FAI Inspectors Identification",null,null,"Char. No.","RISK: accepting a non-conf. as a good part","Gage R&R (input GR&R as % of tolerance)","NUMBER OF PIECES","Capability - Cpk requires more than 25 pieces*","(express % tolerance as a decimal,                        e.g. 14% = 0.14)","ZONE SIZE","MIN (REDUCED)","MAX (REDUCED)","IMPROVE-MENT PLAN",null,"Gage R&R     (default=30%)","BLUEPRINT MIN","BLUEPRINT MAX","actual reading","RISK LEVEL","quantity column","GRR column","Cap row"]
["iex:INSPECTIONXPERT/INSPECTION_SHEET/ATTRIBUTES/ATTRIBUTE/@Uid","iex:INSPECTIONXPERT/INSPECTION_SHEET/ATTRIBUTES/ATTRIBUTE/@SheetZone","iex:INSPECTIONXPERT/INSPECTION_SHEET/ATTRIBUTES/ATTRIBUTE/@SubType","iex:INSPECTIONXPERT/INSPECTION_SHEET/ATTRIBUTES/ATTRIBUTE/@Nominal","iex:INSPECTIONXPERT/INSPECTION_SHEET/ATTRIBUTES/ATTRIBUTE/@LowerLimit","iex:INSPECTIONXPERT/INSPECTION_SHEET/ATTRIBUTES/ATTRIBUTE/@UpperLimit",null,"iex:INSPECTIONXPERT/INSPECTION_SHEET/ATTRIBUTES/ATTRIBUTE/@Process",null,"iex:INSPECTIONXPERT/INSPECTION_SHEET/ATTRIBUTES/ATTRIBUTE/@InspectionMethod",null,null,null,{"$f":"+IF(A9=\"\",\"\",A9)","v":"iex:INSPECTIONXPERT/INSPECTION_SHEET/ATTRIBUTES/ATTRIBUTE/@Uid"},{"$f":"AC9","v":{"$error":"#VALUE!"}},null,1,{"$f":"+IF(AND(E9=\"\",F9=\"\"),\"\",IF(E9=\"\",G9/F9,(2*ABS(E9/2+F9/2-G9)/(F9-E9))))","v":{"$error":"#VALUE!"}},{"$f":"IF(Q9<25,\"(%TOL)\",\"Cpk\")","v":"(%TOL)"},{"$f":"+IF(AC9=\"LO\",\"not required\",Y9/4*(AA9-Z9))","v":{"$error":"#VALUE!"}},{"$f":"IF(T9<>\"not required\",+Z9+T9,\"\")","v":{"$error":"#VALUE!"}},{"$f":"IF(T9<>\"not required\",+AA9-T9,\"\")","v":{"$error":"#VALUE!"}},{"$f":"IF('Form-3'!AC9=\"HI\",\"YES\",\"no\")","v":{"$error":"#VALUE!"}},null,{"$f":"+IF(P9=\"\",0.3,P9)","v":0.3},{"$f":"IF(E9=\"\",\"\",+E9)","v":"iex:INSPECTIONXPERT/INSPECTION_SHEET/ATTRIBUTES/ATTRIBUTE/@LowerLimit"},{"$f":"IF(F9=\"\",\"\",+F9)","v":"iex:INSPECTIONXPERT/INSPECTION_SHEET/ATTRIBUTES/ATTRIBUTE/@UpperLimit"},{"$f":"+G9","v":0},{"$f":"IF(AND(Z9=\"\",AA9=\"\"),\"\",INDEX('DON''T DELETE autorisktable'!$C$3:$J$23,AF9,AE9))","v":{"$error":"#VALUE!"}},{"$f":"VLOOKUP(Q9,'DON''T DELETE autorisktable'!$P$3:$Q$28,2)","v":5},{"$f":"VLOOKUP(Y9,'DON''T DELETE autorisktable'!$M$3:$N$12,2)","v":5},{"$f":"VLOOKUP(R9,'DON''T DELETE autorisktable'!$S$3:$W$66,$AD9)","v":{"$error":"#VALUE!"}}]
[null,null,null,null,null,null,null,null,null,null,null,null,null,{"$f":"+IF(A10=\"\",\"\",A10)","v":""},"",null,1,"",{"$f":"IF(Q10<25,\"(%TOL)\",\"Cpk\")","v":"(%TOL)"},{"$error":"#VALUE!"},{"$error":"#VALUE!"},{"$error":"#VALUE!"},{"$f":"IF('Form-3'!AC10=\"HI\",\"YES\",\"no\")","v":"no"},null,0.3,"","",0,{"$f":"IF(AND(Z10=\"\",AA10=\"\"),\"\",INDEX('DON''T DELETE autorisktable'!$C$3:$J$23,AF10,AE10))","v":""},{"$f":"VLOOKUP(Q10,'DON''T DELETE autorisktable'!$P$3:$Q$28,2)","v":5},{"$f":"VLOOKUP(Y10,'DON''T DELETE autorisktable'!$M$3:$N$12,2)","v":5},{"$f":"VLOOKUP(R10,'DON''T DELETE autorisktable'!$S$3:$W$66,$AD10)","v":{"$error":"#N/A"}}]
[null,null,null,null,null,null,null,null,null,null,null,null,null,"","",null,1,"","(%TOL)",{"$error":"#VALUE!"},{"$error":"#VALUE!"},{"$error":"#VALUE!"},{"$f":"IF('Form-3'!AC11=\"HI\",\"YES\",\"no\")","v":"no"},null,0.3,"","",0,{"$f":"IF(AND(Z11=\"\",AA11=\"\"),\"\",INDEX('DON''T DELETE autorisktable'!$C$3:$J$23,AF11,AE11))","v":""},{"$f":"VLOOKUP(Q11,'DON''T DELETE autorisktable'!$P$3:$Q$28,2)","v":5},{"$f":"VLOOKUP(Y11,'DON''T DELETE autorisktable'!$M$3:$N$12,2)","v":5},{"$f":"VLOOKUP(R11,'DON''T DELETE autorisktable'!$S$3:$W$66,$AD11)","v":{"$error":"#N/A"}}]
[null,null,null,null,null,null,null,null,null,null,null,null,null,"","",null,1,"","(%TOL)",{"$error":"#VALUE!"},{"$error":"#VALUE!"},{"$error":"#VALUE!"},{"$f":"IF('Form-3'!AC12=\"HI\",\"YES\",\"no\")","v":"no"},null,0.3,"","",0,{"$f":"IF(AND(Z12=\"\",AA12=\"\"),\"\",INDEX('DON''T DELETE autorisktable'!$C$3:$J$23,AF12,AE12))","v":""},{"$f":"VLOOKUP(Q12,'DON''T DELETE autorisktable'!$P$3:$Q$28,2)","v":5},{"$f":"VLOOKUP(Y12,'DON''T DELETE autorisktable'!$M$3:$N$12,2)","v":5},{"$f":"VLOOKUP(R12,'DON''T DELETE autorisktable'!$S$3:$W$66,$AD12)","v":{"$error":"#N/A"}}]
[null,null,null,null,null,null,null,null,null,null,null,null,null,"","",null,1,"","(%TOL)",{"$error":"#VALUE!"},{"$error":"#VALUE!"},{"$error":"#VALUE!"},{"$f":"IF('Form-3'!AC13=\"HI\",\"YES\",\"no\")","v":"no"},null,0.3,"","",0,{"$f":"IF(AND(Z13=\"\",AA13=\"\"),\"\",INDEX('DON''T DELETE autorisktable'!$C$3:$J$23,AF13,AE13))","v":""},{"$f":"VLOOKUP(Q13,'DON''T DELETE autorisktable'!$P$3:$Q$28,2)","v":5},{"$f":"VLOOKUP(Y13,'DON''T DELETE autorisktable'!$M$3:$N$12,2)","v":5},{"$f":"VLOOKUP(R13,'DON''T DELETE autorisktable'!$S$3:$W$66,$AD13)","v":{"$error":"#N/A"}}]
[null,null,null,null,null,null,null,null,null,null,null,null,null,"","",null,1,"","(%TOL)",{"$error":"#VALUE!"},{"$error":"#VALUE!"},{"$error":"#VALUE!"},{"$f":"IF('Form-3'!AC14=\"HI\",\"YES\",\"no\")","v":"no"},null,0.3,"","",0,{"$f":"IF(AND(Z14=\"\",AA14=\"\"),\"\",INDEX('DON''T DELETE autorisktable'!$C$3:$J$23,AF14,AE14))","v":""},{"$f":"VLOOKUP(Q14,'DON''T DELETE autorisktable'!$P$3:$Q$28,2)","v":5},{"$f":"VLOOKUP(Y14,'DON''T DELETE autorisktable'!$M$3:$N$12,2)","v":5},{"$f":"VLOOKUP(R14,'DON''T DELETE autorisktable'!$S$3:$W$66,$AD14)","v":{"$error":"#N/A"}}]
[null,null,null,null,null,null,null,null,null,null,null,null,null,"","",null,1,"","(%TOL)",{"$error":"#VALUE!"},{"$error":"#VALUE!"},{"$error":"#VALUE!"},{"$f":"IF('Form-3'!AC15=\"HI\",\"YES\",\"no\")","v":"no"},null,0.3,"","",0,{"$f":"IF(AND(Z15=\"\",AA15=\"\"),\"\",INDEX('DON''T DELETE autorisktable'!$C$3:$J$23,AF15,AE15))","v":""},{"$f":"VLOOKUP(Q15,'DON''T DELETE autorisktable'!$P$3:$Q$28,2)","v":5},{"$f":"VLOOKUP(Y15,'DON''T DELETE autorisktable'!$M$3:$N$12,2)","v":5},{"$f":"VLOOKUP(R15,'DON''T DELETE autorisktable'!$S$3:$W$66,$AD15)","v":{"$error":"#N/A"}}]
[null,null,null,null,null,null,null,null,null,null,null,null,null,"","",null,1,"","(%TOL)",{"$error":"#VALUE!"},{"$error":"#VALUE!"},{"$error":"#VALUE!"},{"$f":"IF('Form-3'!AC16=\"HI\",\"YES\",\"no\")","v":"no"},null,0.3,"","",0,{"$f":"IF(AND(Z16=\"\",AA16=\"\"),\"\",INDEX('DON''T DELETE autorisktable'!$C$3:$J$23,AF16,AE16))","v":""},{"$f":"VLOOKUP(Q16,'DON''T DELETE autorisktable'!$P$3:$Q$28,2)","v":5},{"$f":"VLOOKUP(Y16,'DON''T DELETE autorisktable'!$M$3:$N$12,2)","v":5},{"$f":"VLOOKUP(R16,'DON''T DELETE autorisktable'!$S$3:$W$66,$AD16)","v":{"$error":"#N/A"}}]
[null,null,null,null,null,null,null,null,null,null,null,null,null,"","",null,1,"","(%TOL)",{"$error":"#VALUE!"},{"$error":"#VALUE!"},{"$error":"#VALUE!"},{"$f":"IF('Form-3'!AC17=\"HI\",\"YES\",\"no\")","v":"no"},null,0.3,"","",0,{"$f":"IF(AND(Z17=\"\",AA17=\"\"),\"\",INDEX('DON''T DELETE autorisktable'!$C$3:$J$23,AF17,AE17))","v":""},{"$f":"VLOOKUP(Q17,'DON''T DELETE autorisktable'!$P$3:$Q$28,2)","v":5},{"$f":"VLOOKUP(Y17,'DON''T DELETE autorisktable'!$M$3:$N$12,2)","v":5},{"$f":"VLOOKUP(R17,'DON''T DELETE autorisktable'!$S$3:$W$66,$AD17)","v":{"$error":"#N/A"}}]
[null,null,null,null,null,null,null,null,null,null,null,null,null,"","",null,1,"","(%TOL)",{"$error":"#VALUE!"},{"$error":"#VALUE!"},{"$error":"#VALUE!"},{"$f":"IF('Form-3'!AC18=\"HI\",\"YES\",\"no\")","v":"no"},null,0.3,"","",0,{"$f":"IF(AND(Z18=\"\",AA18=\"\"),\"\",INDEX('DON''T DELETE autorisktable'!$C$3:$J$23,AF18,AE18))","v":""},{"$f":"VLOOKUP(Q18,'DON''T DELETE autorisktable'!$P$3:$Q$28,2)","v":5},{"$f":"VLOOKUP(Y18,'DON''T DELETE autorisktable'!$M$3:$N$12,2)","v":5},{"$f":"VLOOKUP(R18,'DON''T DELETE autorisktable'!$S$3:$W$66,$AD18)","v":{"$error":"#N/A"}}]
[null,null,null,null,null,null,null,null,null,null,null,null,null,"","",null,1,"","(%TOL)",{"$error":"#VALUE!"},{"$error":"#VALUE!"},{"$error":"#VALUE!"},{"$f":"IF('Form-3'!AC19=\"HI\",\"YES\",\"no\")","v":"no"},null,0.3,"","",0,{"$f":"IF(AND(Z19=\"\",AA19=\"\"),\"\",INDEX('DON''T DELETE autorisktable'!$C$3:$J$23,AF19,AE19))","v":""},{"$f":"VLOOKUP(Q19,'DON''T DELETE autorisktable'!$P$3:$Q$28,2)","v":5},{"$f":"VLOOKUP(Y19,'DON''T DELETE autorisktable'!$M$3:$N$12,2)","v":5},{"$f":"VLOOKUP(R19,'DON''T DELETE autorisktable'!$S$3:$W$66,$AD19)","v":{"$error":"#N/A"}}]
[null,null,null,null,null,null,null,null,null,null,null,null,null,{"$f":"+IF(A20=\"\",\"\",A20)","v":""},"",null,1,"",{"$f":"IF(Q20<25,\"(%TOL)\",\"Cpk\")","v":"(%TOL)"},{"$error":"#VALUE!"},{"$error":"#VALUE!"},{"$error":"#VALUE!"},{"$f":"IF('Form-3'!AC20=\"HI\",\"YES\",\"no\")","v":"no"},null,0.3,"","",0,{"$f":"IF(AND(Z20=\"\",AA20=\"\"),\"\",INDEX('DON''T DELETE autorisktable'!$C$3:$J$23,AF20,AE20))","v":""},{"$f":"VLOOKUP(Q20,'DON''T DELETE autorisktable'!$P$3:$Q$28,2)","v":5},{"$f":"VLOOKUP(Y20,'DON''T DELETE autorisktable'!$M$3:$N$12,2)","v":5},{"$f":"VLOOKUP(R20,'DON''T DELETE autorisktable'!$S$3:$W$66,$AD20)","v":{"$error":"#N/A"}}]
[null,null,null,null,null,null,null,null,null,null,null,null,null,"","",null,1,"","(%TOL)",{"$error":"#VALUE!"},{"$error":"#VALUE!"},{"$error":"#VALUE!"},{"$f":"IF('Form-3'!AC21=\"HI\",\"YES\",\"no\")","v":"no"},null,0.3,"","",0,{"$f":"IF(AND(Z21=\"\",AA21=\"\"),\"\",INDEX('DON''T DELETE autorisktable'!$C$3:$J$23,AF21,AE21))","v":""},{"$f":"VLOOKUP(Q21,'DON''T DELETE autorisktable'!$P$3:$Q$28,2)","v":5},{"$f":"VLOOKUP(Y21,'DON''T DELETE autorisktable'!$M$3:$N$12,2)","v":5},{"$f":"VLOOKUP(R21,'DON''T DELETE autorisktable'!$S$3:$W$66,$AD21)","v":{"$error":"#N/A"}}]
[null,null,null,null,null,null,null,null,null,null,null,null,null,"","",null,1,"","(%TOL)",{"$error":"#VALUE!"},{"$error":"#VALUE!"},{"$error":"#VALUE!"},{"$f":"IF('Form-3'!AC22=\"HI\",\"YES\",\"no\")","v":"no"},null,0.3,"","",0,{"$f":"IF(AND(Z22=\"\",AA22=\"\"),\"\",INDEX('DON''T DELETE autorisktable'!$C$3:$J$23,AF22,AE22))","v":""},{"$f":"VLOOKUP(Q22,'DON''T DELETE autorisktable'!$P$3:$Q$28,2)","v":5},{"$f":"VLOOKUP(Y22,'DON''T DELETE autorisktable'!$M$3:$N$12,2)","v":5},{"$f":"VLOOKUP(R22,'DON''T DELETE autorisktable'!$S$3:$W$66,$AD22)","v":{"$error":"#N/A"}}]
[null,null,null,null,null,null,null,null,null,null,null,null,null,"","",null,1,"","(%TOL)",{"$error":"#VALUE!"},{"$error":"#VALUE!"},{"$error":"#VALUE!"},{"$f":"IF('Form-3'!AC23=\"HI\",\"YES\",\"no\")","v":"no"},null,0.3,"","",0,{"$f":"IF(AND(Z23=\"\",AA23=\"\"),\"\",INDEX('DON''T DELETE autorisktable'!$C$3:$J$23,AF23,AE23))","v":""},{"$f":"VLOOKUP(Q23,'DON''T DELETE autorisktable'!$P$3:$Q$28,2)","v":5},{"$f":"VLOOKUP(Y23,'DON''T DELETE autorisktable'!$M$3:$N$12,2)","v":5},{"$f":"VLOOKUP(R23,'DON''T DELETE autorisktable'!$S$3:$W$66,$AD23)","v":{"$error":"#N/A"}}]
[null,null,null,null,null,null,null,null,null,null,null,null,null,"","",null,1,"","(%TOL)",{"$error":"#VALUE!"},{"$error":"#VALUE!"},{"$error":"#VALUE!"},{"$f":"IF('Form-3'!AC24=\"HI\",\"YES\",\"no\")","v":"no"},null,0.3,"","",0,{"$f":"IF(AND(Z24=\"\",AA24=\"\"),\"\",INDEX('DON''T DELETE autorisktable'!$C$3:$J$23,AF24,AE24))","v":""},{"$f":"VLOOKUP(Q24,'DON''T DELETE autorisktable'!$P$3:$Q$28,2)","v":5},{"$f":"VLOOKUP(Y24,'DON''T DELETE autorisktable'!$M$3:$N$12,2)","v":5},{"$f":"VLOOKUP(R24,'DON''T DELETE autorisktable'!$S$3:$W$66,$AD24)","v":{"$error":"#N/A"}}]
[null,null,null,null,null,null,null,null,null,null,null,null,null,"","",null,1,"","(%TOL)",{"$error":"#VALUE!"},{"$error":"#VALUE!"},{"$error":"#VALUE!"},{"$f":"IF('Form-3'!AC25=\"HI\",\"YES\",\"no\")","v":"no"},null,0.3,"","",0,{"$f":"IF(AND(Z25=\"\",AA25=\"\"),\"\",INDEX('DON''T DELETE autorisktable'!$C$3:$J$23,AF25,AE25))","v":""},{"$f":"VLOOKUP(Q25,'DON''T DELETE autorisktable'!$P$3:$Q$28,2)","v":5},{"$f":"VLOOKUP(Y25,'DON''T DELETE autorisktable'!$M$3:$N$12,2)","v":5},{"$f":"VLOOKUP(R25,'DON''T DELETE autorisktable'!$S$3:$W$66,$AD25)","v":{"$error":"#N/A"}}]
[null,null,null,null,null,null,null,null,null,null,null,null,null,"","",null,1,"","(%TOL)",{"$error":"#VALUE!"},{"$error":"#VALUE!"},{"$error":"#VALUE!"},{"$f":"IF('Form-3'!AC26=\"HI\",\"YES\",\"no\")","v":"no"},null,0.3,"","",0,{"$f":"IF(AND(Z26=\"\",AA26=\"\"),\"\",INDEX('DON''T DELETE autorisktable'!$C$3:$J$23,AF26,AE26))","v":""},{"$f":"VLOOKUP(Q26,'DON''T DELETE autorisktable'!$P$3:$Q$28,2)","v":5},{"$f":"VLOOKUP(Y26,'DON''T DELETE autorisktable'!$M$3:$N$12,2)","v":5},{"$f":"VLOOKUP(R26,'DON''T DELETE autorisktable'!$S$3:$W$66,$AD26)","v":{"$error":"#N/A"}}]
[null,null,null,null,null,null,null,null,null,null,null,null,null,"","",null,1,"","(%TOL)",{"$error":"#VALUE!"},{"$error":"#VALUE!"},{"$error":"#VALUE!"},{"$f":"IF('Form-3'!AC27=\"HI\",\"YES\",\"no\")","v":"no"},null,0.3,"","",0,{"$f":"IF(AND(Z27=\"\",AA27=\"\"),\"\",INDEX('DON''T DELETE autorisktable'!$C$3:$J$23,AF27,AE27))","v":""},{"$f":"VLOOKUP(Q27,'DON''T DELETE autorisktable'!$P$3:$Q$28,2)","v":5},{"$f":"VLOOKUP(Y27,'DON''T DELETE autorisktable'!$M$3:$N$12,2)","v":5},{"$f":"VLOOKUP(R27,'DON''T DELETE autorisktable'!$S$3:$W$66,$AD27)","v":{"$error":"#N/A"}}]
[null,null,null,null,null,null,null,null,null,null,null,null,null,"","",null,1,"","(%TOL)",{"$error":"#VALUE!"},{"$error":"#VALUE!"},{"$error":"#VALUE!"},{"$f":"IF('Form-3'!AC28=\"HI\",\"YES\",\"no\")","v":"no"},null,0.3,"","",0,{"$f":"IF(AND(Z28=\"\",AA28=\"\"),\"\",INDEX('DON''T DELETE autorisktable'!$C$3:$J$23,AF28,AE28))","v":""},{"$f":"VLOOKUP(Q28,'DON''T DELETE autorisktable'!$P$3:$Q$28,2)","v":5},{"$f":"VLOOKUP(Y28,'DON''T DELETE autorisktable'!$M$3:$N$12,2)","v":5},{"$f":"VLOOKUP(R28,'DON''T DELETE autorisktable'!$S$3:$W$66,$AD28)","v":{"$error":"#N/A"}}]
[null,null,null,null,null,null,null,null,null,null,null,null,null,"","",null,1,"","(%TOL)",{"$error":"#VALUE!"},{"$error":"#VALUE!"},{"$error":"#VALUE!"},{"$f":"IF('Form-3'!AC29=\"HI\",\"YES\",\"no\")","v":"no"},null,0.3,"","",0,{"$f":"IF(AND(Z29=\"\",AA29=\"\"),\"\",INDEX('DON''T DELETE autorisktable'!$C$3:$J$23,AF29,AE29))","v":""},{"$f":"VLOOKUP(Q29,'DON''T DELETE autorisktable'!$P$3:$Q$28,2)","v":5},{"$f":"VLOOKUP(Y29,'DON''T DELETE autorisktable'!$M$3:$N$12,2)","v":5},{"$f":"VLOOKUP(R29,'DON''T DELETE autorisktable'!$S$3:$W$66,$AD29)","v":{"$error":"#N/A"}}]
[null,null,null,null,null,null,null,null,null,null,null,null,null,"","",null,1,"","(%TOL)",{"$error":"#VALUE!"},{"$error":"#VALUE!"},{"$error":"#VALUE!"},{"$f":"IF('Form-3'!AC30=\"HI\",\"YES\",\"no\")","v":"no"},null,0.3,"","",0,{"$f":"IF(AND(Z30=\"\",AA30=\"\"),\"\",INDEX('DON''T DELETE autorisktable'!$C$3:$J$23,AF30,AE30))","v":""},{"$f":"VLOOKUP(Q30,'DON''T DELETE autorisktable'!$P$3:$Q$28,2)","v":5},{"$f":"VLOOKUP(Y30,'DON''T DELETE autorisktable'!$M$3:$N$12,2)","v":5},{"$f":"VLOOKUP(R30,'DON''T DELETE autorisktable'!$S$3:$W$66,$AD30)","v":{"$error":"#N/A"}}]
[null,null,null,null,null,null,null,null,null,null,null,null,null,"","",null,1,"","(%TOL)",{"$error":"#VALUE!"},{"$error":"#VALUE!"},{"$error":"#VALUE!"},{"$f":"IF('Form-3'!AC31=\"HI\",\"YES\",\"no\")","v":"no"},null,0.3,"","",0,{"$f":"IF(AND(Z31=\"\",AA31=\"\"),\"\",INDEX('DON''T DELETE autorisktable'!$C$3:$J$23,AF31,AE31))","v":""},{"$f":"VLOOKUP(Q31,'DON''T DELETE autorisktable'!$P$3:$Q$28,2)","v":5},{"$f":"VLOOKUP(Y31,'DON''T DELETE autorisktable'!$M$3:$N$12,2)","v":5},{"$f":"VLOOKUP(R31,'DON''T DELETE autorisktable'!$S$3:$W$66,$AD31)","v":{"$error":"#N/A"}}]
[null,null,null,null,null,null,null,null,null,null,null,null,null,"","",null,1,"","(%TOL)",{"$error":"#VALUE!"},{"$error":"#VALUE!"},{"$error":"#VALUE!"},{"$f":"IF('Form-3'!AC32=\"HI\",\"YES\",\"no\")","v":"no"},null,0.3,"","",0,{"$f":"IF(AND(Z32=\"\",AA32=\"\"),\"\",INDEX('DON''T DELETE autorisktable'!$C$3:$J$23,AF32,AE32))","v":""},{"$f":"VLOOKUP(Q32,'DON''T DELETE autorisktable'!$P$3:$Q$28,2)","v":5},{"$f":"VLOOKUP(Y32,'DON''T DELETE autorisktable'!$M$3:$N$12,2)","v":5},{"$f":"VLOOKUP(R32,'DON''T DELETE autorisktable'!$S$3:$W$66,$AD32)","v":{"$error":"#N/A"}}]
[null,null,null,null,null,null,null,null,null,null,null,null,null,"","",null,1,"","(%TOL)",{"$error":"#VALUE!"},{"$error":"#VALUE!"},{"$error":"#VALUE!"},{"$f":"IF('Form-3'!AC33=\"HI\",\"YES\",\"no\")","v":"no"},null,0.3,"","",0,{"$f":"IF(AND(Z33=\"\",AA33=\"\"),\"\",INDEX('DON''T DELETE autorisktable'!$C$3:$J$23,AF33,AE33))","v":""},{"$f":"VLOOKUP(Q33,'DON''T DELETE autorisktable'!$P$3:$Q$28,2)","v":5},{"$f":"VLOOKUP(Y33,'DON''T DELETE autorisktable'!$M$3:$N$12,2)","v":5},{"$f":"VLOOKUP(R33,'DON''T DELETE autorisktable'!$S$3:$W$66,$AD33)","v":{"$error":"#N/A"}}]
["The signature indicates that all characteristics are accounted for; meet drawing requirements or are properly documented for disposition.",null,null,null,null,null,null,null,null,null,null,null,null,"*if entering capability for less than 25 pieces, enter the percentage of tolerance used by the entire range of parts (see below for equations)",null,null,null,null,null,null,null,null,null,null,null,null,{"$f":"+IF(AND(#REF!=\"\",#REF!=\"\"),\"\",IF(#REF!=\"\",#REF!/#REF!,(2*ABS(#REF!/2+#REF!/2-#REF!)/(#REF!-#REF!))))","v":{"$error":"#REF!"}}]
["12. Prepared By",null,null,null,null,null,null,null,null,"13. Date     ",null,null,null,"    NOTE: Capability cannot be calculated for MIN ONLY or MAX ONLY, except Geometric Tolerances (e.g true position, flatness, etc) where 0.000 is the desired target"]

{"sheet":"EXAMPLES","index":4,"n_rows":69,"n_cols":34,"rows_kept":69,"cut":false,"hidden":false,"merged":[[62,2,62,4],[62,12,62,13],[63,9,63,14],[31,2,31,4],[33,2,33,4],[38,9,39,14],[51,9,52,14],[43,9,48,14],[31,9,31,14],[33,9,33,14],[59,12,59,13],[54,2,54,4],[55,6,55,7],[55,9,55,14],[57,6,57,7],[57,9,57,14],[54,12,54,13],[59,2,59,4],[53,12,53,13],[24,2,24,4],[26,2,26,4],[56,6,56,7],[56,9,56,14],[49,12,49,13],[50,2,50,4],[41,2,41,4],[49,2,49,4],[28,2,29,4],[37,2,37,5],[21,18,21,20],[41,12,41,13],[21,21,21,23],[22,12,22,13],[24,12,24,13],[26,9,26,14],[34,9,35,14],[21,16,21,17],[26,35,26,41],[38,35,38,41],[60,9,60,14],[19,2,19,6],[19,8,19,10],[19,11,19,12],[19,13,19,14],[20,2,20,6],[20,8,20,10],[20,11,20,12],[20,13,20,14],[21,2,21,6],[21,8,21,10],[21,11,21,14],[42,12,42,13],[28,9,29,14]]}
[null,1,"THE F.A.I.R. PART OF THE FORM (left side) NEVER CHANGES - IT IS BASED ON ONE SINGLE PIECE PRESENTED AT TIME OF F.A.I."]
[null,null,null,"-- The right half of The form is YOUR space to add more information about the process - it is dynamic and can be edited as more information is known/discovered"]
[null,2,"\"HI RISK\" DOES NOT MEAN THE PART CANNOT SHIP ! -- It is simply an indication that the process is more likely to produce future non-conformances"]
[null,3,"LOW RISK DOES NOT MEAN THE PROCESS IS 100% SAFE !"]
[null,4,"HI RISK DEMANDS A CLOSER LOOK - AND ACTION (record actions on FORM O)"]
[null,null,4.0999999999999996,"USE MANUFACTURING ENGINEERING JUDGEMENT - Some HI RISK only be a funciton of this spreadsheet "]
[null,null,null,"4.1.1","For example -- Some targeting off-center is acceptable (to maximize tool life, to prevent rolled edges in peening, to take advantage of MMC conditions - etc.)"]
[null,null,null,"4.1.2","DOCUMENT INTENT!"]
[null,null,4.2,"GOOD GAGE R&R (low measurement error) is the most powerful tool to reduce risk level"]
[null,null,4.3,"CONTAINMENT ZONES ARE SUGGESTED RESTRICTIONS FOR \"FIRST TIME ACCEPT\" INSPECTION LIMITS"]
[null,null,null,"4.3.1","The containment zone is the \"FRINGE\" close to blueprint limits that require verification of measurements"]
[null,null,null,"4.3.2","Containment Zone = (GAGE R&R % of tolerance)x(BP max - BP min) / 4"]
[null,null,null,"4.3.3","If the part falls within the containment limits - accept as usual"]
[null,null,null,"4.3.4","If the part falls between Containment MAX and BLUEPRINT MAX - Verify the dimension using another method, DQR/SQAR Overinspect, multiple (recorded!) measurements, etc"]
[null,5,"USE THIS FORM TO TRACK IMPROVEMENTS TO THE PROCESS - during P&W Manufacturing Process Reviews (MPRs), or other reviews"]
[null,6,"ALWAYS HANDLE NON-CONFORMANCES PER PWQA6088"]
[null,7,"IF IN DOUBT - CONTACT YOUR P&W SQAR - and see below for examples"]
[]
[]
[null,null,"1. Part Number",null,null,null,null,null,"2. Part Name",null,null,"3. Serial Number",null,"4. FAI Report",null,"ADDITIONAL INFORMATION FOR FAI REPORT",null,null,null,null,{"$f":"CONCATENATE(\"FAIR \",N21)","v":"FAIR "},null,null,null,{"$f":"+N20","v":"4. FAI Report"}]
[null,null,null,null,null,null,null,null,null,null,null,null,null,null,null,{"$f":"CONCATENATE(\"p/n \",Text12)","v":"p/n "},null,{"$f":"I21","v":0},null,{"$f":"CONCATENATE(\"s/n \",+L21)","v":"s/n "}]
[null,null,"Dimensional Characteristic Accountability",null,null,null,null,null,"Inspection / Test Results",null,null,null,null,null,null,null,"RISK LEVEL  ",null,"other info (25 pc study)",null,null,"CONTAINMENT"]
[null,null,"5. Char No.","6. Reference Location ","7. Characteristic Designator","8.\nGDT Requirement/ Comments","8. Requirement (min)       leave blank for GDT","8. Requirement (max)","9. Results","10. Designed Tooling","11. Non-Conformance Number","14. FAI Inspection Measuring Equipment","14. FAI Inspectors Identification",null,null,"Char. No.","RISK: accepting a non-conf. as a good part","Gage R&R (input GR&R as % of tolerance)","NUMBER OF PIECES","Capability - Cpk requires more than 25 pieces*","(express % tolerance as a decimal,                        e.g. 14% = 0.14)","ZONE SIZE","MIN (REDUCED)","MAX (REDUCED)","IMPROVE-MENT PLAN",null,"Gage R&R     (default=30%)","BLUEPRINT MIN","BLUEPRINT MAX","actual reading","RISK LEVEL","quantity column","GRR column","Cap row"]
[]
[null,null,"Simple dimension",null,null,null,1.0029999999999999,1.0089999999999999,1.0024999999999999,null,null,null,null,null,null,null,{"$f":"AE25","v":"HI"},null,1,{"$f":"+IF(AND(G25=\"\",H25=\"\"),\"\",IF(G25=\"\",I25/H25,(2*ABS(G25/2+H25/2-I25)/(H25-G25))))","v":1.1666666666666112},{"$f":"IF(S25<25,\"(%TOL)\",\"Cpk\")","v":"(%TOL)"},{"$f":"+IF(AE25=\"LO\",\"not required\",AA25/4*(AC25-AB25))","v":4.5000000000000037E-4},{"$f":"IF(V25<>\"not required\",+AB25+V25,\"\")","v":1.00345},{"$f":"IF(V25<>\"not required\",+AC25-V25,\"\")","v":1.0085499999999998},{"$f":"IF('Form-3'!AC9=\"HI\",\"YES\",\"no\")","v":{"$error":"#VALUE!"}},null,{"$f":"+IF(R25=\"\",0.3,R25)","v":0.3},{"$f":"IF(G25=\"\",\"\",+G25)","v":1.0029999999999999},1.0089999999999999,{"$f":"+I25","v":1.0024999999999999},{"$f":"IF(AND(AB25=\"\",AC25=\"\"),\"\",INDEX('DON''T DELETE autorisktable'!$C$3:$J$23,AH25,AG25))","v":"HI"},{"$f":"VLOOKUP(S25,'DON''T DELETE autorisktable'!$P$3:$Q$28,2)","v":5},{"$f":"VLOOKUP(AA25,'DON''T DELETE autorisktable'!$M$3:$N$12,2)","v":5},{"$f":"VLOOKUP(T25,'DON''T DELETE autorisktable'!$S$3:$W$66,$AF25)","v":2}]
[null,null,null,null,null,null,null,null,null,null,null,null,null,null,null,{"$f":"+IF(C26=\"\",\"\",C26)","v":""}]
[null,null,"Min. only (e.g. Hardness, wall thickness, etc.)",null,null,null,56,"NR",57,"(( ENTER \"NR\" FOR \"No requirent\".  NO RISK WILL BE CALCULATED FOR A ONE SIDED TOLERANCE - THIS IS OK - USE JUDGEMENT TO DETERMINE RISK ))",null,null,null,null,null,null,{"$f":"AE27","v":{"$error":"#VALUE!"}},null,1,{"$error":"#VALUE!"},{"$f":"IF(S27<25,\"(%TOL)\",\"Cpk\")","v":"(%TOL)"},{"$f":"+IF(AE27=\"LO\",\"not required\",AA27/4*(AC27-AB27))","v":{"$error":"#VALUE!"}},{"$f":"IF(V27<>\"not required\",+AB27+V27,\"\")","v":{"$error":"#VALUE!"}},{"$f":"IF(V27<>\"not required\",+AC27-V27,\"\")","v":{"$error":"#VALUE!"}},{"$f":"IF('Form-3'!AC10=\"HI\",\"YES\",\"no\")","v":"no"},null,{"$f":"+IF(R27=\"\",0.3,R27)","v":0.3},56,"NR",57,{"$f":"IF(AND(AB27=\"\",AC27=\"\"),\"\",INDEX('DON''T DELETE autorisktable'!$C$3:$J$23,AH27,AG27))","v":{"$error":"#VALUE!"}},{"$f":"VLOOKUP(S27,'DON''T DELETE autorisktable'!$P$3:$Q$28,2)","v":5},{"$f":"VLOOKUP(AA27,'DON''T DELETE autorisktable'!$M$3:$N$12,2)","v":5},{"$f":"VLOOKUP(T27,'DON''T DELETE autorisktable'!$S$3:$W$66,$AF27)","v":{"$error":"#VALUE!"}}]
[null,null,null,null,null,null,null,null,null,null,null,null,null,null,null,""]
[null,null,"Max only (e.g. Coating thickness, max step size, etc),\n     two examples - note actual values",null,null,null,"NR",5.0000000000000001E-3,4.0000000000000001E-3,"(( FOR MAX ONLY DIMENSIONS, THE ACTUAL-VALUE FORMATTING WILL BE REVERSED - FORMATTING DOES NOT MATTER - LOOK AT THE VALUES ! ! !  ))  (( NO RISK WILL BE CALCULATED FOR A ONE SIDED TOLERANCE ))",null,null,null,null,null,null,{"$f":"AE29","v":{"$error":"#VALUE!"}},null,1,{"$error":"#VALUE!"},{"$f":"IF(S29<25,\"(%TOL)\",\"Cpk\")","v":"(%TOL)"},{"$f":"+IF(AE29=\"LO\",\"not required\",AA29/4*(AC29-AB29))","v":{"$error":"#VALUE!"}},{"$f":"IF(V29<>\"not required\",+AB29+V29,\"\")","v":{"$error":"#VALUE!"}},{"$f":"IF(V29<>\"not required\",+AC29-V29,\"\")","v":{"$error":"#VALUE!"}},{"$f":"IF('Form-3'!AC11=\"HI\",\"YES\",\"no\")","v":"no"},null,{"$f":"+IF(R29=\"\",0.3,R29)","v":0.3},"NR",5.0000000000000001E-3,4.0000000000000001E-3,{"$f":"IF(AND(AB29=\"\",AC29=\"\"),\"\",INDEX('DON''T DELETE autorisktable'!$C$3:$J$23,AH29,AG29))","v":{"$error":"#VALUE!"}},{"$f":"VLOOKUP(S29,'DON''T DELETE autorisktable'!$P$3:$Q$28,2)","v":5},{"$f":"VLOOKUP(AA29,'DON''T DELETE autorisktable'!$M$3:$N$12,2)","v":5},{"$f":"VLOOKUP(T29,'DON''T DELETE autorisktable'!$S$3:$W$66,$AF29)","v":{"$error":"#VALUE!"}}]
[null,null,null,null,null,null,"NR",5.0000000000000001E-3,6.0000000000000001E-3,null,null,null,null,null,null,"",{"$f":"AE30","v":{"$error":"#VALUE!"}},null,1,{"$error":"#VALUE!"},{"$f":"IF(S30<25,\"(%TOL)\",\"Cpk\")","v":"(%TOL)"},{"$f":"+IF(AE30=\"LO\",\"not required\",AA30/4*(AC30-AB30))","v":{"$error":"#VALUE!"}},{"$f":"IF(V30<>\"not required\",+AB30+V30,\"\")","v":{"$error":"#VALUE!"}},{"$f":"IF(V30<>\"not required\",+AC30-V30,\"\")","v":{"$error":"#VALUE!"}},{"$f":"IF('Form-3'!AC12=\"HI\",\"YES\",\"no\")","v":"no"},null,{"$f":"+IF(R30=\"\",0.3,R30)","v":0.3},"NR",5.0000000000000001E-3,6.0000000000000001E-3,{"$f":"IF(AND(AB30=\"\",AC30=\"\"),\"\",INDEX('DON''T DELETE autorisktable'!$C$3:$J$23,AH30,AG30))","v":{"$error":"#VALUE!"}},{"$f":"VLOOKUP(S30,'DON''T DELETE autorisktable'!$P$3:$Q$28,2)","v":5},{"$f":"VLOOKUP(AA30,'DON''T DELETE autorisktable'!$M$3:$N$12,2)","v":5},{"$f":"VLOOKUP(T30,'DON''T DELETE autorisktable'!$S$3:$W$66,$AF30)","v":{"$error":"#VALUE!"}}]
[null,null,null,null,null,null,null,null,null,null,null,null,null,null,null,""]
[null,null,"GDT TOLERANCES",null,null,"True Pos.",null,6.0000000000000001E-3,4.0000000000000001E-3,"(( GDT DIMS MUST HAVE A BLANK FOR MIN VALUE - THIS ALLOWS THE SPREADSHEET TO CALCULATE RISK ))",null,null,null,null,null,null,{"$f":"AE32","v":"MOD"},null,1,{"$f":"+IF(AND(G32=\"\",H32=\"\"),\"\",IF(G32=\"\",I32/H32,(2*ABS(G32/2+H32/2-I32)/(H32-G32))))","v":0.66666666666666663},{"$f":"IF(S32<25,\"(%TOL)\",\"Cpk\")","v":"(%TOL)"},{"$f":"+IF(AE32=\"LO\",\"not required\",AA32/4*(AC32-AB32))","v":{"$error":"#VALUE!"}},{"$f":"IF(V32<>\"not required\",+AB32+V32,\"\")","v":{"$error":"#VALUE!"}},{"$f":"IF(V32<>\"not required\",+AC32-V32,\"\")","v":{"$error":"#VALUE!"}},{"$f":"IF('Form-3'!AC11=\"HI\",\"YES\",\"no\")","v":"no"},null,{"$f":"+IF(R32=\"\",0.3,R32)","v":0.3},{"$f":"IF(G32=\"\",\"\",+G32)","v":""},{"$f":"IF(H32=\"\",\"\",+H32)","v":6.0000000000000001E-3},{"$f":"+I32","v":4.0000000000000001E-3},{"$f":"IF(AND(AB32=\"\",AC32=\"\"),\"\",INDEX('DON''T DELETE autorisktable'!$C$3:$J$23,AH32,AG32))","v":"MOD"},{"$f":"VLOOKUP(S32,'DON''T DELETE autorisktable'!$P$3:$Q$28,2)","v":5},{"$f":"VLOOKUP(AA32,'DON''T DELETE autorisktable'!$M$3:$N$12,2)","v":5},{"$f":"VLOOKUP(T32,'DON''T DELETE autorisktable'!$S$3:$W$66,$AF32)","v":12}]
[null,null,null,null,null,null,null,null,null,null,null,null,null,null,null,""]
[null,null,"GDT TOLERANCES, (MMC)",null,null,null,null,null,null,null,null,null,null,null,null,null,{"$f":"AE34","v":""},null,1,{"$f":"+IF(AND(G34=\"\",H34=\"\"),\"\",IF(G34=\"\",I34/H34,(2*ABS(G34/2+H34/2-I34)/(H34-G34))))","v":""},{"$f":"IF(S34<25,\"(%TOL)\",\"Cpk\")","v":"(%TOL)"},{"$f":"+IF(AE34=\"LO\",\"not required\",AA34/4*(AC34-AB34))","v":{"$error":"#VALUE!"}},{"$f":"IF(V34<>\"not required\",+AB34+V34,\"\")","v":{"$error":"#VALUE!"}},{"$f":"IF(V34<>\"not required\",+AC34-V34,\"\")","v":{"$error":"#VALUE!"}},{"$f":"IF('Form-3'!AC13=\"HI\",\"YES\",\"no\")","v":"no"},null,{"$f":"+IF(R34=\"\",0.3,R34)","v":0.3},{"$f":"IF(G34=\"\",\"\",+G34)","v":""},"",{"$f":"+I34","v":0},{"$f":"IF(AND(AB34=\"\",AC34=\"\"),\"\",INDEX('DON''T DELETE autorisktable'!$C$3:$J$23,AH34,AG34))","v":""},{"$f":"VLOOKUP(S34,'DON''T DELETE autorisktable'!$P$3:$Q$28,2)","v":5},{"$f":"VLOOKUP(AA34,'DON''T DELETE autorisktable'!$M$3:$N$12,2)","v":5},{"$f":"VLOOKUP(T34,'DON''T DELETE autorisktable'!$S$3:$W$66,$AF34)","v":{"$error":"#N/A"}}]
[null,null,19,"5C-1",null,"True Pos.",null,6.0000000000000001E-3,5.0000000000000001E-3,"(( When considering GDT Tolerances with MMC or LMC conditions, it is best to use the un-altered tolerance first to understand the capability of the process producing the feature.  The risk level should be considered in light of the bonus tolerance.  In this example, the true position is close to max, but the size of the hole allows more tolerance.  This may be deemed as an acceptable risk level by the SQAR, based on more process information. ))",null,null,null,null,null,19,{"$f":"AE35","v":"MOD"},0.26,25,1.04,{"$f":"IF(S35<25,\"(%TOL)\",\"Cpk\")","v":"Cpk"},{"$f":"+IF(AE35=\"LO\",\"not required\",AA35/4*(AC35-AB35))","v":{"$error":"#VALUE!"}},{"$f":"IF(V35<>\"not required\",+AB35+V35,\"\")","v":{"$error":"#VALUE!"}},{"$f":"IF(V35<>\"not required\",+AC35-V35,\"\")","v":{"$error":"#VALUE!"}},{"$f":"IF('Form-3'!AC14=\"HI\",\"YES\",\"no\")","v":"no"},null,{"$f":"+IF(R35=\"\",0.3,R35)","v":0.26},"",6.0000000000000001E-3,{"$f":"+I35","v":5.0000000000000001E-3},{"$f":"IF(AND(AB35=\"\",AC35=\"\"),\"\",INDEX('DON''T DELETE autorisktable'!$C$3:$J$23,AH35,AG35))","v":"MOD"},{"$f":"VLOOKUP(S35,'DON''T DELETE autorisktable'!$P$3:$Q$28,2)","v":2},{"$f":"VLOOKUP(AA35,'DON''T DELETE autorisktable'!$M$3:$N$12,2)","v":4},{"$f":"VLOOKUP(T35,'DON''T DELETE autorisktable'!$S$3:$W$66,$AF35)","v":16}]
[null,null,"19 (MMC)","5C-1",null,"True Pos (MMC)",null,0.01,5.0000000000000001E-3,null,null,null,null,null,null,"19 (MMC)",{"$f":"AE36","v":"LO"},null,1,{"$f":"+IF(AND(G36=\"\",H36=\"\"),\"\",IF(G36=\"\",I36/H36,(2*ABS(G36/2+H36/2-I36)/(H36-G36))))","v":0.5},{"$f":"IF(S36<25,\"(%TOL)\",\"Cpk\")","v":"(%TOL)"},{"$f":"+IF(AE36=\"LO\",\"not required\",AA36/4*(AC36-AB36))","v":"not required"},{"$f":"IF(V36<>\"not required\",+AB36+V36,\"\")","v":""},{"$f":"IF(V36<>\"not required\",+AC36-V36,\"\")","v":""},{"$f":"IF('Form-3'!AC15=\"HI\",\"YES\",\"no\")","v":"no"},null,{"$f":"+IF(R36=\"\",0.3,R36)","v":0.3},"",0.01,{"$f":"+I36","v":5.0000000000000001E-3},{"$f":"IF(AND(AB36=\"\",AC36=\"\"),\"\",INDEX('DON''T DELETE autorisktable'!$C$3:$J$23,AH36,AG36))","v":"LO"},{"$f":"VLOOKUP(S36,'DON''T DELETE autorisktable'!$P$3:$Q$28,2)","v":5},{"$f":"VLOOKUP(AA36,'DON''T DELETE autorisktable'!$M$3:$N$12,2)","v":5},{"$f":"VLOOKUP(T36,'DON''T DELETE autorisktable'!$S$3:$W$66,$AF36)","v":21}]
[null,null,null,null,null,null,null,null,null,null,null,null,null,null,null,""]
[null,null,"Diameter as a range Min to Max:"]
[null,null,"35 (min)","12E-10","KPC-2",null,0.45800000000000002,0.46,0.45750000000000002,"(( REPORT DIA AS A RANGE - Min and Max - over 2 lines -  RISK WILL CALCULATE FOR BOTH ENDS OF THE RANGE.  RISK NOW HAS 6 LEVELS:  LO-LO, LO-MOD, MOD-MOD, LO-HI, MOD-HI, HI-HI ))",null,null,null,null,null,"35 (min)",{"$f":"AE39","v":"HI"},null,1,{"$f":"+IF(AND(G39=\"\",H39=\"\"),\"\",IF(G39=\"\",I39/H39,(2*ABS(G39/2+H39/2-I39)/(H39-G39))))","v":1.5},{"$f":"IF(S39<25,\"(%TOL)\",\"Cpk\")","v":"(%TOL)"},{"$f":"+IF(AE39=\"LO\",\"not required\",AA39/4*(AC39-AB39))","v":1.5000000000000012E-4},{"$f":"IF(V39<>\"not required\",+AB39+V39,\"\")","v":0.45815},{"$f":"IF(V39<>\"not required\",+AC39-V39,\"\")","v":0.45985000000000004},{"$f":"IF('Form-3'!AC15=\"HI\",\"YES\",\"no\")","v":"no"},null,{"$f":"+IF(R39=\"\",0.3,R39)","v":0.3},{"$f":"IF(G39=\"\",\"\",+G39)","v":0.45800000000000002},{"$f":"IF(H39=\"\",\"\",+H39)","v":0.46},{"$f":"+I39","v":0.45750000000000002},{"$f":"IF(AND(AB39=\"\",AC39=\"\"),\"\",INDEX('DON''T DELETE autorisktable'!$C$3:$J$23,AH39,AG39))","v":"HI"},{"$f":"VLOOKUP(S39,'DON''T DELETE autorisktable'!$P$3:$Q$28,2)","v":5},{"$f":"VLOOKUP(AA39,'DON''T DELETE autorisktable'!$M$3:$N$12,2)","v":5},{"$f":"VLOOKUP(T39,'DON''T DELETE autorisktable'!$S$3:$W$66,$AF39)","v":1}]
[null,null,"35 (max)","12E-10","KPC-2",null,0.45800000000000002,0.46,0.45960000000000001,null,null,null,null,null,null,"35 (max)",{"$f":"AE40","v":"MOD"},0.35,1,{"$f":"+IF(AND(G40=\"\",H40=\"\"),\"\",IF(G40=\"\",I40/H40,(2*ABS(G40/2+H40/2-I40)/(H40-G40))))","v":0.59999999999998888},{"$f":"IF(S40<25,\"(%TOL)\",\"Cpk\")","v":"(%TOL)"},{"$f":"+IF(AE40=\"LO\",\"not required\",AA40/4*(AC40-AB40))","v":1.7500000000000013E-4},{"$f":"IF(V40<>\"not required\",+AB40+V40,\"\")","v":0.458175},{"$f":"IF(V40<>\"not required\",+AC40-V40,\"\")","v":0.45982500000000004},{"$f":"IF('Form-3'!AC16=\"HI\",\"YES\",\"no\")","v":"no"},null,{"$f":"+IF(R40=\"\",0.3,R40)","v":0.35},{"$f":"IF(G40=\"\",\"\",+G40)","v":0.45800000000000002},{"$f":"IF(H40=\"\",\"\",+H40)","v":0.46},{"$f":"+I40","v":0.45960000000000001},{"$f":"IF(AND(AB40=\"\",AC40=\"\"),\"\",INDEX('DON''T DELETE autorisktable'!$C$3:$J$23,AH40,AG40))","v":"MOD"},{"$f":"VLOOKUP(S40,'DON''T DELETE autorisktable'!$P$3:$Q$28,2)","v":5},{"$f":"VLOOKUP(AA40,'DON''T DELETE autorisktable'!$M$3:$N$12,2)","v":6},{"$f":"VLOOKUP(T40,'DON''T DELETE autorisktable'!$S$3:$W$66,$AF40)","v":16}]
[null,null,null,null,null,null,null,null,null,null,null,null,null,null,null,""]
[null,null,"Tabulated Measurements:",null,null,null,null,null,null,null,null,null,null,null,null,null,{"$f":"AE42","v":""},null,1,{"$f":"+IF(AND(G42=\"\",H42=\"\"),\"\",IF(G42=\"\",I42/H42,(2*ABS(G42/2+H42/2-I42)/(H42-G42))))","v":""},{"$f":"IF(S42<25,\"(%TOL)\",\"Cpk\")","v":"(%TOL)"},{"$f":"+IF(AE42=\"LO\",\"not required\",AA42/4*(AC42-AB42))","v":{"$error":"#VALUE!"}},{"$f":"IF(V42<>\"not required\",+AB42+V42,\"\")","v":{"$error":"#VALUE!"}},{"$f":"IF(V42<>\"not required\",+AC42-V42,\"\")","v":{"$error":"#VALUE!"}},{"$f":"IF('Form-3'!AC19=\"HI\",\"YES\",\"no\")","v":"no"},null,{"$f":"+IF(R42=\"\",0.3,R42)","v":0.3},{"$f":"IF(G42=\"\",\"\",+G42)","v":""},{"$f":"IF(H42=\"\",\"\",+H42)","v":""},{"$f":"+I42","v":0},{"$f":"IF(AND(AB42=\"\",AC42=\"\"),\"\",INDEX('DON''T DELETE autorisktable'!$C$3:$J$23,AH42,AG42))","v":""},{"$f":"VLOOKUP(S42,'DON''T DELETE autorisktable'!$P$3:$Q$28,2)","v":5},{"$f":"VLOOKUP(AA42,'DON''T DELETE autorisktable'!$M$3:$N$12,2)","v":5},{"$f":"VLOOKUP(T42,'DON''T DELETE autorisktable'!$S$3:$W$66,$AF42)","v":{"$error":"#N/A"}}]
[null,null,15,"4F-3","TABLE",null,null,null,null,null,null,null,null,null,null,15,"",null,1,"","(%TOL)",{"$error":"#VALUE!"},{"$error":"#VALUE!"},{"$error":"#VALUE!"},{"$f":"IF('Form-3'!AC20=\"HI\",\"YES\",\"no\")","v":"no"},null,0.3,"","",0,{"$f":"IF(AND(AB43=\"\",AC43=\"\"),\"\",INDEX('DON''T DELETE autorisktable'!$C$3:$J$23,AH43,AG43))","v":""},{"$f":"VLOOKUP(S43,'DON''T DELETE autorisktable'!$P$3:$Q$28,2)","v":5},{"$f":"VLOOKUP(AA43,'DON''T DELETE autorisktable'!$M$3:$N$12,2)","v":5},{"$f":"VLOOKUP(T43,'DON''T DELETE autorisktable'!$S$3:$W$66,$AF43)","v":{"$error":"#N/A"}}]
[null,null,15.1,"section A-A","U",null,0.04,5.1999999999999998E-2,4.5999999999999999E-2,"(( Tables on the the field of the blueprint are shown in any way that makes sense to both the Preparer and to the SQAR.  Individual features within the table should be separated by line item so RISK may be calculated individually.   The table may be identified with one balloon number \"X\", and each feature as a  \"X.1, X.2, X.3...\", or each feature may be identified with it's own balloon.  As long as each feature can be traced from BP to this form, it will be deemed acceptable.  ))",null,null,null,null,null,15.1,"LO",null,1,0,"(%TOL)","not required","","",{"$f":"IF('Form-3'!AC21=\"HI\",\"YES\",\"no\")","v":"no"},null,0.3,0.04,5.1999999999999998E-2,4.5999999999999999E-2,{"$f":"IF(AND(AB44=\"\",AC44=\"\"),\"\",INDEX('DON''T DELETE autorisktable'!$C$3:$J$23,AH44,AG44))","v":"LO"},{"$f":"VLOOKUP(S44,'DON''T DELETE autorisktable'!$P$3:$Q$28,2)","v":5},{"$f":"VLOOKUP(AA44,'DON''T DELETE autorisktable'!$M$3:$N$12,2)","v":5},{"$f":"VLOOKUP(T44,'DON''T DELETE autorisktable'!$S$3:$W$66,$AF44)","v":21}]
[null,null,15.2,"Section C-C","U",null,4.4999999999999998E-2,5.7000000000000002E-2,4.8000000000000001E-2,null,null,null,null,null,null,15.2,"LO",null,1,0.50000000000000033,"(%TOL)","not required","","",{"$f":"IF('Form-3'!AC23=\"HI\",\"YES\",\"no\")","v":"no"},null,0.3,4.4999999999999998E-2,5.7000000000000002E-2,4.8000000000000001E-2,{"$f":"IF(AND(AB45=\"\",AC45=\"\"),\"\",INDEX('DON''T DELETE autorisktable'!$C$3:$J$23,AH45,AG45))","v":"LO"},{"$f":"VLOOKUP(S45,'DON''T DELETE autorisktable'!$P$3:$Q$28,2)","v":5},{"$f":"VLOOKUP(AA45,'DON''T DELETE autorisktable'!$M$3:$N$12,2)","v":5},{"$f":"VLOOKUP(T45,'DON''T DELETE autorisktable'!$S$3:$W$66,$AF45)","v":21}]
[null,null,15.3,"Section F-F","U",null,0.05,6.2E-2,5.1999999999999998E-2,null,null,null,null,null,null,15.3,"MOD",null,1,0.66666666666666741,"(%TOL)",8.9999999999999976E-4,5.0900000000000001E-2,6.1100000000000002E-2,{"$f":"IF('Form-3'!AC25=\"HI\",\"YES\",\"no\")","v":"no"},null,0.3,0.05,6.2E-2,5.1999999999999998E-2,{"$f":"IF(AND(AB46=\"\",AC46=\"\"),\"\",INDEX('DON''T DELETE autorisktable'!$C$3:$J$23,AH46,AG46))","v":"MOD"},{"$f":"VLOOKUP(S46,'DON''T DELETE autorisktable'!$P$3:$Q$28,2)","v":5},{"$f":"VLOOKUP(AA46,'DON''T DELETE autorisktable'!$M$3:$N$12,2)","v":5},{"$f":"VLOOKUP(T46,'DON''T DELETE autorisktable'!$S$3:$W$66,$AF46)","v":12}]
[null,null,15.4,"SectionA-A","V, KPC-2",null,5.1999999999999998E-2,0.06,5.5E-2,null,null,null,null,null,null,15.4,"LO",null,1,0.24999999999999847,"(%TOL)","not required","","",{"$f":"IF('Form-3'!AC24=\"HI\",\"YES\",\"no\")","v":"no"},null,0.3,5.1999999999999998E-2,0.06,5.5E-2,{"$f":"IF(AND(AB47=\"\",AC47=\"\"),\"\",INDEX('DON''T DELETE autorisktable'!$C$3:$J$23,AH47,AG47))","v":"LO"},{"$f":"VLOOKUP(S47,'DON''T DELETE autorisktable'!$P$3:$Q$28,2)","v":5},{"$f":"VLOOKUP(AA47,'DON''T DELETE autorisktable'!$M$3:$N$12,2)","v":5},{"$f":"VLOOKUP(T47,'DON''T DELETE autorisktable'!$S$3:$W$66,$AF47)","v":21}]
[null,null,15.5,"Section C-C","V, KPC-2",null,5.1999999999999998E-2,0.06,5.2999999999999999E-2,null,null,null,null,null,null,15.5,"HI",null,1,0.74999999999999889,"(%TOL)",5.9999999999999995E-4,5.2600000000000001E-2,5.9399999999999994E-2,{"$f":"IF('Form-3'!AC22=\"HI\",\"YES\",\"no\")","v":"no"},null,0.3,5.1999999999999998E-2,0.06,5.2999999999999999E-2,{"$f":"IF(AND(AB48=\"\",AC48=\"\"),\"\",INDEX('DON''T DELETE autorisktable'!$C$3:$J$23,AH48,AG48))","v":"HI"},{"$f":"VLOOKUP(S48,'DON''T DELETE autorisktable'!$P$3:$Q$28,2)","v":5},{"$f":"VLOOKUP(AA48,'DON''T DELETE autorisktable'!$M$3:$N$12,2)","v":5},{"$f":"VLOOKUP(T48,'DON''T DELETE autorisktable'!$S$3:$W$66,$AF48)","v":8}]
[null,null,15.6,"Section F-F","V, KPC-2",null,5.3999999999999999E-2,6.2E-2,5.8999999999999997E-2,null,null,null,null,null,null,15.6,"LO",null,1,0.25000000000000022,"(%TOL)","not required","","",{"$f":"IF('Form-3'!AC26=\"HI\",\"YES\",\"no\")","v":"no"},null,0.3,5.3999999999999999E-2,6.2E-2,5.8999999999999997E-2,{"$f":"IF(AND(AB49=\"\",AC49=\"\"),\"\",INDEX('DON''T DELETE autorisktable'!$C$3:$J$23,AH49,AG49))","v":"LO"},{"$f":"VLOOKUP(S49,'DON''T DELETE autorisktable'!$P$3:$Q$28,2)","v":5},{"$f":"VLOOKUP(AA49,'DON''T DELETE autorisktable'!$M$3:$N$12,2)","v":5},{"$f":"VLOOKUP(T49,'DON''T DELETE autorisktable'!$S$3:$W$66,$AF49)","v":21}]
[null,null,null,null,null,null,null,null,null,null,null,null,null,null,null,null,"",null,null,"","(%TOL)",{"$error":"#VALUE!"},{"$error":"#VALUE!"},{"$error":"#VALUE!"},{"$f":"IF('Form-3'!AC18=\"HI\",\"YES\",\"no\")","v":"no"},null,0.3,"","",0,{"$f":"IF(AND(AB50=\"\",AC50=\"\"),\"\",INDEX('DON''T DELETE autorisktable'!$C$3:$J$23,AH50,AG50))","v":""},{"$f":"VLOOKUP(S50,'DON''T DELETE autorisktable'!$P$3:$Q$28,2)","v":{"$error":"#N/A"}},{"$f":"VLOOKUP(AA50,'DON''T DELETE autorisktable'!$M$3:$N$12,2)","v":5},{"$f":"VLOOKUP(T50,'DON''T DELETE autorisktable'!$S$3:$W$66,$AF50)","v":{"$error":"#N/A"}}]
[null,null,"Angular dimensions "]
[null,null,131,"6A-3",null,null,"12deg 4' 30\"","12deg 6' 30\"","12deg 5' 15\"","(( Angular dimensions in Degrees, Minutes, Seconds will not calculate risk.  The spreadsheet will interpret this notation as TEXT.  It is permissible to report an optional line in Radians.  RADIANS = DEGREES + (MINUTES/60) + (SECONDS/3600).  If there is a discrepancy between the two, preference will be given to the line reported the same way the blueprint defines the feature ))",null,null,null,null,null,131,{"$f":"AE52","v":{"$error":"#VALUE!"}},null,1,{"$f":"+IF(AND(G52=\"\",H52=\"\"),\"\",IF(G52=\"\",I52/H52,(2*ABS(G52/2+H52/2-I52)/(H52-G52))))","v":{"$error":"#VALUE!"}},{"$f":"IF(S52<25,\"(%TOL)\",\"Cpk\")","v":"(%TOL)"},{"$f":"+IF(AE52=\"LO\",\"not required\",AA52/4*(AC52-AB52))","v":{"$error":"#VALUE!"}},{"$f":"IF(V52<>\"not required\",+AB52+V52,\"\")","v":{"$error":"#VALUE!"}},{"$f":"IF(V52<>\"not required\",+AC52-V52,\"\")","v":{"$error":"#VALUE!"}},{"$f":"IF('Form-3'!AC27=\"HI\",\"YES\",\"no\")","v":"no"},null,{"$f":"+IF(R52=\"\",0.3,R52)","v":0.3},{"$f":"IF(G52=\"\",\"\",+G52)","v":"12deg 4' 30\""},"12deg 6' 30\"",{"$f":"+I52","v":"12deg 5' 15\""},{"$f":"IF(AND(AB52=\"\",AC52=\"\"),\"\",INDEX('DON''T DELETE autorisktable'!$C$3:$J$23,AH52,AG52))","v":{"$error":"#VALUE!"}},{"$f":"VLOOKUP(S52,'DON''T DELETE autorisktable'!$P$3:$Q$28,2)","v":5},{"$f":"VLOOKUP(AA52,'DON''T DELETE autorisktable'!$M$3:$N$12,2)","v":5},{"$f":"VLOOKUP(T52,'DON''T DELETE autorisktable'!$S$3:$W$66,$AF52)","v":{"$error":"#VALUE!"}}]
[null,null,"131 decimal","conversion",null,null,{"$f":"12+(4/60)+(30/60)/60","v":12.074999999999999},{"$f":"12+(6/60)+(30/60)/60","v":12.108333333333333},{"$f":"12+(5/60)+(15/60)/60","v":12.0875},null,null,null,null,null,null,"131 decimal",{"$f":"AE53","v":"LO"},null,1,{"$f":"+IF(AND(G53=\"\",H53=\"\"),\"\",IF(G53=\"\",I53/H53,(2*ABS(G53/2+H53/2-I53)/(H53-G53))))","v":0.2499999999998801},{"$f":"IF(S53<25,\"(%TOL)\",\"Cpk\")","v":"(%TOL)"},{"$f":"+IF(AE53=\"LO\",\"not required\",AA53/4*(AC53-AB53))","v":"not required"},{"$f":"IF(V53<>\"not required\",+AB53+V53,\"\")","v":""},{"$f":"IF(V53<>\"not required\",+AC53-V53,\"\")","v":""},{"$f":"IF('Form-3'!AC28=\"HI\",\"YES\",\"no\")","v":"no"},null,{"$f":"+IF(R53=\"\",0.3,R53)","v":0.3},12.074999999999999,12.108333333333333,{"$f":"+I53","v":12.0875},{"$f":"IF(AND(AB53=\"\",AC53=\"\"),\"\",INDEX('DON''T DELETE autorisktable'!$C$3:$J$23,AH53,AG53))","v":"LO"},{"$f":"VLOOKUP(S53,'DON''T DELETE autorisktable'!$P$3:$Q$28,2)","v":5},{"$f":"VLOOKUP(AA53,'DON''T DELETE autorisktable'!$M$3:$N$12,2)","v":5},{"$f":"VLOOKUP(T53,'DON''T DELETE autorisktable'!$S$3:$W$66,$AF53)","v":21}]
[null,null,null,null,null,null,null,null,null,null,null,null,null,null,null,"",{"$f":"AE54","v":""},null,null,{"$f":"+IF(AND(G54=\"\",H54=\"\"),\"\",IF(G54=\"\",I54/H54,(2*ABS(G54/2+H54/2-I54)/(H54-G54))))","v":""},{"$f":"IF(S54<25,\"(%TOL)\",\"Cpk\")","v":"(%TOL)"},{"$f":"+IF(AE54=\"LO\",\"not required\",AA54/4*(AC54-AB54))","v":{"$error":"#VALUE!"}},{"$f":"IF(V54<>\"not required\",+AB54+V54,\"\")","v":{"$error":"#VALUE!"}},{"$f":"IF(V54<>\"not required\",+AC54-V54,\"\")","v":{"$error":"#VALUE!"}},{"$f":"IF('Form-3'!AC29=\"HI\",\"YES\",\"no\")","v":"no"},null,{"$f":"+IF(R54=\"\",0.3,R54)","v":0.3},"","",{"$f":"+I54","v":0},{"$f":"IF(AND(AB54=\"\",AC54=\"\"),\"\",INDEX('DON''T DELETE autorisktable'!$C$3:$J$23,AH54,AG54))","v":""},{"$f":"VLOOKUP(S54,'DON''T DELETE autorisktable'!$P$3:$Q$28,2)","v":{"$error":"#N/A"}},{"$f":"VLOOKUP(AA54,'DON''T DELETE autorisktable'!$M$3:$N$12,2)","v":5},{"$f":"VLOOKUP(T54,'DON''T DELETE autorisktable'!$S$3:$W$66,$AF54)","v":{"$error":"#N/A"}}]
[null,null,"Attribute Measurements"]
[null,null,241,"Note4, 4B-2","KPC-2",null,"No coat permitted zone (D)",null,"NO COAT","(( Attribute measurements should be reserved ONLY for items that cannot be measured variably per AS9102.                                         ANY NON-CONFORMANCE to an attribute should be considered HI RISK  ))",null,null,null,null,null,241,{"$f":"AE56","v":{"$error":"#VALUE!"}},null,1,{"$f":"+IF(AND(G57=\"\",H57=\"\"),\"\",IF(G57=\"\",I57/H57,(2*ABS(G57/2+H57/2-I57)/(H57-G57))))","v":{"$error":"#VALUE!"}},{"$f":"IF(S56<25,\"(%TOL)\",\"Cpk\")","v":"(%TOL)"},{"$f":"+IF(AE56=\"LO\",\"not required\",AA56/4*(AC56-AB56))","v":{"$error":"#VALUE!"}},{"$f":"IF(V56<>\"not required\",+AB56+V56,\"\")","v":{"$error":"#VALUE!"}},{"$f":"IF(V56<>\"not required\",+AC56-V56,\"\")","v":{"$error":"#VALUE!"}},{"$f":"IF('Form-3'!AC31=\"HI\",\"YES\",\"no\")","v":"no"},null,{"$f":"+IF(R56=\"\",0.3,R56)","v":0.3},{"$f":"IF(G57=\"\",\"\",+G57)","v":"No coat permitted zone (D)"},{"$f":"IF(H57=\"\",\"\",+H57)","v":""},{"$f":"+I57","v":"NO COAT"},{"$f":"IF(AND(AB56=\"\",AC56=\"\"),\"\",INDEX('DON''T DELETE autorisktable'!$C$3:$J$23,AH56,AG56))","v":{"$error":"#VALUE!"}},{"$f":"VLOOKUP(S56,'DON''T DELETE autorisktable'!$P$3:$Q$28,2)","v":5},{"$f":"VLOOKUP(AA56,'DON''T DELETE autorisktable'!$M$3:$N$12,2)","v":5},{"$f":"VLOOKUP(T56,'DON''T DELETE autorisktable'!$S$3:$W$66,$AF56)","v":{"$error":"#VALUE!"}}]
[null,null,242,"Note4, 6B-2","KPC-2",null,"No coat permitted zone (D)",null,"NO COAT","(( Attribute measurements should be reserved ONLY for items that cannot be measured variably per AS9102.                                         ANY NON-CONFORMANCE to an attribute should be considered HI RISK  ))",null,null,null,null,null,242,{"$error":"#VALUE!"},null,1,{"$f":"+IF(AND(G58=\"\",H58=\"\"),\"\",IF(G58=\"\",I58/H58,(2*ABS(G58/2+H58/2-I58)/(H58-G58))))","v":{"$error":"#VALUE!"}},"(%TOL)",{"$error":"#VALUE!"},{"$error":"#VALUE!"},{"$error":"#VALUE!"},{"$f":"IF('Form-3'!AC32=\"HI\",\"YES\",\"no\")","v":"no"},null,0.3,{"$f":"IF(G58=\"\",\"\",+G58)","v":"No coat permitted zone (D)"},{"$f":"IF(H58=\"\",\"\",+H58)","v":""},{"$f":"+I58","v":"coating found"},{"$f":"IF(AND(AB57=\"\",AC57=\"\"),\"\",INDEX('DON''T DELETE autorisktable'!$C$3:$J$23,AH57,AG57))","v":{"$error":"#VALUE!"}},{"$f":"VLOOKUP(S57,'DON''T DELETE autorisktable'!$P$3:$Q$28,2)","v":5},{"$f":"VLOOKUP(AA57,'DON''T DELETE autorisktable'!$M$3:$N$12,2)","v":5},{"$f":"VLOOKUP(T57,'DON''T DELETE autorisktable'!$S$3:$W$66,$AF57)","v":{"$error":"#VALUE!"}}]
[null,null,243,"Note4, 6C-2","KPC-2",null,"No coat permitted zone (D)",null,"coating found","(( Attribute measurements should be reserved ONLY for items that cannot be measured variably per AS9102.                                         ANY NON-CONFORMANCE to an attribute should be considered HI RISK  ))",null,null,null,null,null,243,"",null,1,{"$f":"+IF(AND(G60=\"\",H60=\"\"),\"\",IF(G60=\"\",I60/H60,(2*ABS(G60/2+H60/2-I60)/(H60-G60))))","v":""},"(%TOL)",{"$error":"#VALUE!"},{"$error":"#VALUE!"},{"$error":"#VALUE!"},{"$f":"IF('Form-3'!AC33=\"HI\",\"YES\",\"no\")","v":"no"},null,0.3,{"$f":"IF(G60=\"\",\"\",+G60)","v":""},{"$f":"IF(H60=\"\",\"\",+H60)","v":""},{"$f":"+I60","v":0},{"$f":"IF(AND(AB58=\"\",AC58=\"\"),\"\",INDEX('DON''T DELETE autorisktable'!$C$3:$J$23,AH58,AG58))","v":""},{"$f":"VLOOKUP(S58,'DON''T DELETE autorisktable'!$P$3:$Q$28,2)","v":5},{"$f":"VLOOKUP(AA58,'DON''T DELETE autorisktable'!$M$3:$N$12,2)","v":5},{"$f":"VLOOKUP(T58,'DON''T DELETE autorisktable'!$S$3:$W$66,$AF58)","v":{"$error":"#N/A"}}]
[null,null,null,null,null,null,null,null,null,null,null,null,null,null,null,""]
[null,null,"Nom. & Tolerance Designation on BP (not min-max)",null,null,null,null,null,null,null,null,null,null,null,null,null,"",null,1,{"$f":"+IF(AND(G60=\"\",H60=\"\"),\"\",IF(G60=\"\",I60/H60,(2*ABS(G60/2+H60/2-I60)/(H60-G60))))","v":""},"(%TOL)",{"$error":"#VALUE!"},{"$error":"#VALUE!"},{"$error":"#VALUE!"},{"$f":"IF('Form-3'!AC34=\"HI\",\"YES\",\"no\")","v":"no"},null,0.3,{"$f":"IF(G60=\"\",\"\",+G60)","v":""},{"$f":"IF(H60=\"\",\"\",+H60)","v":""},{"$f":"+I60","v":0},{"$f":"IF(AND(AB60=\"\",AC60=\"\"),\"\",INDEX('DON''T DELETE autorisktable'!$C$3:$J$23,AH60,AG60))","v":""},{"$f":"VLOOKUP(S60,'DON''T DELETE autorisktable'!$P$3:$Q$28,2)","v":5},{"$f":"VLOOKUP(AA60,'DON''T DELETE autorisktable'!$M$3:$N$12,2)","v":5},{"$f":"VLOOKUP(T60,'DON''T DELETE autorisktable'!$S$3:$W$66,$AF60)","v":{"$error":"#N/A"}}]
[0.04,5.0000000000000001E-3,319,"10C-5",null,null,{"$f":"+A61-B61","v":3.5000000000000003E-2},{"$f":"+A61+B61","v":4.4999999999999998E-2},4.2500000000000003E-2,"(( If the blueprint calls out \".040 +/-.002\", it is permissible to enter the min and max as calculated (different than on the Blueprint), or to insert two columns to the left (outside the AS9102 form), and write formulae to perform the calculations.  CLICK on G42 and H42 to see formulae.  ))",null,null,null,null,null,319,"LO",null,1,{"$f":"+IF(AND(G61=\"\",H61=\"\"),\"\",IF(G61=\"\",I61/H61,(2*ABS(G61/2+H61/2-I61)/(H61-G61))))","v":0.50000000000000067},"(%TOL)","not required","","",{"$f":"IF('Form-3'!AC35=\"HI\",\"YES\",\"no\")","v":"no"},null,0.3,{"$f":"IF(G61=\"\",\"\",+G61)","v":3.5000000000000003E-2},{"$f":"IF(H61=\"\",\"\",+H61)","v":4.4999999999999998E-2},{"$f":"+I61","v":4.2500000000000003E-2},{"$f":"IF(AND(AB61=\"\",AC61=\"\"),\"\",INDEX('DON''T DELETE autorisktable'!$C$3:$J$23,AH61,AG61))","v":"LO"},{"$f":"VLOOKUP(S61,'DON''T DELETE autorisktable'!$P$3:$Q$28,2)","v":5},{"$f":"VLOOKUP(AA61,'DON''T DELETE autorisktable'!$M$3:$N$12,2)","v":5},{"$f":"VLOOKUP(T61,'DON''T DELETE autorisktable'!$S$3:$W$66,$AF61)","v":21}]
[null,null,null,null,null,null,null,null,null,null,null,null,null,null,null,""]
[null,null,"Four (or more)  Decimal Places",null,null,null,null,null,null,null,null,null,null,null,null,null,{"$f":"AE63","v":""},null,1,{"$f":"+IF(AND(G63=\"\",H63=\"\"),\"\",IF(G63=\"\",I63/H63,(2*ABS(G63/2+H63/2-I63)/(H63-G63))))","v":""},{"$f":"IF(S63<25,\"(%TOL)\",\"Cpk\")","v":"(%TOL)"},{"$f":"+IF(AE63=\"LO\",\"not required\",AA63/4*(AC63-AB63))","v":{"$error":"#VALUE!"}},{"$f":"IF(V63<>\"not required\",+AB63+V63,\"\")","v":{"$error":"#VALUE!"}},{"$f":"IF(V63<>\"not required\",+AC63-V63,\"\")","v":{"$error":"#VALUE!"}},{"$f":"IF('Form-3'!AC37=\"HI\",\"YES\",\"no\")","v":"no"},null,{"$f":"+IF(R63=\"\",0.3,R63)","v":0.3},{"$f":"IF(G63=\"\",\"\",+G63)","v":""},{"$f":"IF(H63=\"\",\"\",+H63)","v":""},{"$f":"+I63","v":0},{"$f":"IF(AND(AB63=\"\",AC63=\"\"),\"\",INDEX('DON''T DELETE autorisktable'!$C$3:$J$23,AH63,AG63))","v":""},{"$f":"VLOOKUP(S63,'DON''T DELETE autorisktable'!$P$3:$Q$28,2)","v":5},{"$f":"VLOOKUP(AA63,'DON''T DELETE autorisktable'!$M$3:$N$12,2)","v":5},{"$f":"VLOOKUP(T63,'DON''T DELETE autorisktable'!$S$3:$W$66,$AF63)","v":{"$error":"#N/A"}}]
[null,null,511,"3D-1",null,null,1E-4,1E-3,4.0000000000000002E-4,"(( Enter the number of decimal places as appropriate.  Excel may format \".040\" as \".04\" automatically.  In order to fix this, right-click on the cell to be reformatted, and select \"FORMAT CELLS\", then select \"number\" and change the decimal places ))",null,null,null,null,null,511,{"$f":"AE64","v":"LO"},null,1,{"$f":"+IF(AND(G64=\"\",H64=\"\"),\"\",IF(G64=\"\",I64/H64,(2*ABS(G64/2+H64/2-I64)/(H64-G64))))","v":0.33333333333333337},{"$f":"IF(S64<25,\"(%TOL)\",\"Cpk\")","v":"(%TOL)"},{"$f":"+IF(AE64=\"LO\",\"not required\",AA64/4*(AC64-AB64))","v":"not required"},{"$f":"IF(V64<>\"not required\",+AB64+V64,\"\")","v":""},{"$f":"IF(V64<>\"not required\",+AC64-V64,\"\")","v":""},{"$f":"IF('Form-3'!AC38=\"HI\",\"YES\",\"no\")","v":"no"},null,{"$f":"+IF(R64=\"\",0.3,R64)","v":0.3},{"$f":"IF(G64=\"\",\"\",+G64)","v":1E-4},{"$f":"IF(H64=\"\",\"\",+H64)","v":1E-3},{"$f":"+I64","v":4.0000000000000002E-4},{"$f":"IF(AND(AB64=\"\",AC64=\"\"),\"\",INDEX('DON''T DELETE autorisktable'!$C$3:$J$23,AH64,AG64))","v":"LO"},{"$f":"VLOOKUP(S64,'DON''T DELETE autorisktable'!$P$3:$Q$28,2)","v":5},{"$f":"VLOOKUP(AA64,'DON''T DELETE autorisktable'!$M$3:$N$12,2)","v":5},{"$f":"VLOOKUP(T64,'DON''T DELETE autorisktable'!$S$3:$W$66,$AF64)","v":21}]
[]
[]
[null,null,null,"ALWAYS HANDLE NON-CONFORMANCES PER PWQA6088"]
[null,null,null,"HI RISK DOES NOT MEAN THE PART CANNOT SHIP ! "]
[null,null,null,"LOW RISK DOES NOT MEAN THE PROCESS IS 100% SAFE !"]

{"sheet":"DON'T DELETE autorisktable","index":5,"n_rows":66,"n_cols":23,"rows_kept":66,"cut":false,"hidden":false,"merged":[]}
[null,null,10,15,20,25,0.3,35,40,60]
[null,null,1,2,3,4,5,6,7,8,null,null,"GRR","GRR#",null,"No of pcs","Cap column",null,"CAP","CPK ROW","10-24row","4-9row","1-3row"]
[null,1,"MOD","HI","HI","HI","HI","HI","HI","HI",null,null,0,1,null,1,5,null,0,1,21,21,21]
[null,2,"MOD","HI","HI","HI","HI","HI","HI","HI",null,null,9.9999800999999999E-2,1,null,2,5,null,0.19999989999999998,1,21,21,21]
[null,3,"MOD","HI","HI","HI","HI","HI","HI","HI",null,null,0.14999979999999999,2,null,3,5,null,0.29999989999999999,2,21,21,21]
[null,4,"MOD","HI","HI","HI","HI","HI","HI","HI",null,null,0.19999980009999999,3,null,4,4,null,0.2499999,3,21,21,21]
[null,5,"MOD","HI","HI","HI","HI","HI","HI","HI",null,null,0.2499998001,4,null,5,4,null,0.39999990000000002,4,21,21,21]
[null,6,"MOD","HI","HI","HI","HI","HI","HI","HI",null,null,0.29999980999999998,5,null,6,4,null,0.44999990000000001,5,21,21,21]
[null,7,"MOD","HI","HI","HI","HI","HI","HI","HI",null,null,0.34999979999999997,6,null,7,4,null,0.49999989999999994,6,21,21,21]
[null,8,"MOD","MOD","HI","HI","HI","HI","HI","HI",null,null,0.39999980000000002,7,null,8,4,null,0.54999989999999999,7,21,21,21]
[null,9,"MOD","MOD","HI","HI","HI","HI","HI","HI",null,null,0.49999979999999999,8,null,9,4,null,0.55999989999999999,7,21,21,20]
[null,10,"MOD","MOD","MOD","HI","HI","HI","HI","HI",null,null,0.59999979999999997,8,null,10,4,null,0.56999989999999989,7,21,21,19]
[null,11,"MOD","MOD","MOD","MOD","HI","HI","HI","HI",null,null,null,null,null,11,3,null,0.5799998999999999,7,21,21,18]
[null,12,"MOD","MOD","MOD","MOD","MOD","HI","HI","HI",null,null,null,null,null,12,3,null,0.58999989999999991,7,21,21,17]
[null,13,"MOD","MOD","MOD","MOD","MOD","MOD","HI","HI",null,null,null,null,null,13,3,null,0.59999989999999992,8,21,21,16]
[null,14,"MOD","MOD","MOD","MOD","MOD","MOD","HI","HI",null,null,null,null,null,14,3,null,0.60999989999999993,8,21,21,15]
[null,15,"MOD","MOD","MOD","MOD","MOD","MOD","MOD","HI",null,null,null,null,null,15,3,null,0.61999989999999994,8,21,21,14]
[null,16,"LO","LO","LO","MOD","MOD","MOD","MOD","MOD",null,null,null,null,null,16,3,null,0.62999989999999995,8,21,20,14]
[null,17,"LO","LO","LO","LO","MOD","MOD","MOD","MOD",null,null,null,null,null,17,3,null,0.63999989999999995,8,21,20,13]
[null,18,"LO","LO","LO","LO","LO","MOD","MOD","MOD",null,null,null,null,null,18,3,null,0.64999989999999996,9,21,19,12]
[null,19,"LO","LO","LO","LO","LO","LO","MOD","MOD",null,null,null,null,null,19,3,null,0.65999989999999997,9,21,18,12]
[null,20,"LO","LO","LO","LO","LO","LO","LO","MOD",null,null,null,null,null,20,3,null,0.66999989999999998,9,21,18,11]
[null,21,"LO","LO","LO","LO","LO","LO","LO","MOD",null,null,null,null,null,21,3,null,0.67999989999999999,9,21,17,11]
[null,null,null,null,null,null,null,null,null,null,null,null,null,null,null,22,3,null,0.68999989999999989,9,21,17,10]
[null,null,null,null,null,null,null,null,null,null,null,null,null,null,null,23,3,null,0.6999998999999999,10,21,16,10]
[null,null,null,null,null,null,null,null,null,null,null,null,null,null,null,24,3,null,0.71999989999999991,10,21,16,9]
[null,null,null,null,null,null,null,null,null,null,null,null,null,null,null,25,2,null,0.72999989999999992,10,20,15,9]
[null,null,null,null,null,null,null,null,null,null,null,null,null,null,null,10000,2,null,0.74999989999999994,11,20,14,8]
[null,null,null,null,null,null,null,null,null,null,null,null,null,null,null,null,null,null,0.75999989999999995,11,19,14,8]
[null,null,null,null,null,null,null,null,null,null,null,null,null,null,null,null,null,null,0.77999989999999997,11,18,13,7]
[null,null,null,null,null,null,null,null,null,null,null,null,null,null,null,null,null,null,0.79999989999999999,12,18,13,7]
[null,null,null,null,null,null,null,null,null,null,null,null,null,null,null,null,null,null,0.81999989999999989,12,17,12,6]
[null,null,null,null,null,null,null,null,null,null,null,null,null,null,null,null,null,null,0.84999989999999992,13,16,11,6]
[null,null,null,null,null,null,null,null,null,null,null,null,null,null,null,null,null,null,0.86999989999999994,13,16,11,5]
[null,null,null,null,null,null,null,null,null,null,null,null,null,null,null,null,null,null,0.88999989999999995,13,15,11,5]
[null,null,null,null,null,null,null,null,null,null,null,null,null,null,null,null,null,null,0.89999989999999996,14,15,10,5]
[null,null,null,null,null,null,null,null,null,null,null,null,null,null,null,null,null,null,0.93499989999999999,14,14,10,4]
[null,null,null,null,null,null,null,null,null,null,null,null,null,null,null,null,null,null,0.9499998999999989,15,14,9,4]
[null,null,null,null,null,null,null,null,null,null,null,null,null,null,null,null,null,null,0.97999989999999992,15,13,9,4]
[null,null,null,null,null,null,null,null,null,null,null,null,null,null,null,null,null,null,0.99999989999999894,16,13,8,4]
[null,null,null,null,null,null,null,null,null,null,null,null,null,null,null,null,null,null,1.0199999000000002,16,13,8,3]
[null,null,null,null,null,null,null,null,null,null,null,null,null,null,null,null,null,null,1.0299999000000002,16,12,8,3]
[null,null,null,null,null,null,null,null,null,null,null,null,null,null,null,null,null,null,1.0499999000000002,17,12,8,3]
[null,null,null,null,null,null,null,null,null,null,null,null,null,null,null,null,null,null,1.0699999000000002,17,12,7,3]
[null,null,null,null,null,null,null,null,null,null,null,null,null,null,null,null,null,null,1.0899999000000002,17,11,7,3]
[null,null,null,null,null,null,null,null,null,null,null,null,null,null,null,null,null,null,1.0999999000000003,18,11,7,3]
[null,null,null,null,null,null,null,null,null,null,null,null,null,null,null,null,null,null,1.1199999000000003,18,11,7,2]
[null,null,null,null,null,null,null,null,null,null,null,null,null,null,null,null,null,null,1.1499999000000001,19,11,6,2]
[null,null,null,null,null,null,null,null,null,null,null,null,null,null,null,null,null,null,1.1599999000000001,19,10,6,2]
[null,null,null,null,null,null,null,null,null,null,null,null,null,null,null,null,null,null,1.1999999000000001,20,10,6,2]
[null,null,null,null,null,null,null,null,null,null,null,null,null,null,null,null,null,null,1.2399999000000002,20,9,6,2]
[null,null,null,null,null,null,null,null,null,null,null,null,null,null,null,null,null,null,1.2499999000000002,21,9,5,2]
[null,null,null,null,null,null,null,null,null,null,null,null,null,null,null,null,null,null,1.3299999000000002,21,8,5,2]
[null,null,null,null,null,null,null,null,null,null,null,null,null,null,null,null,null,null,1.3799999000000001,21,8,4,2]
[null,null,null,null,null,null,null,null,null,null,null,null,null,null,null,null,null,null,1.4399999000000001,21,7,4,2]
[null,null,null,null,null,null,null,null,null,null,null,null,null,null,null,null,null,null,1.4999999000000002,21,7,4,1]
[null,null,null,null,null,null,null,null,null,null,null,null,null,null,null,null,null,null,1.5399999000000002,21,7,3,1]
[null,null,null,null,null,null,null,null,null,null,null,null,null,null,null,null,null,null,1.5799999000000002,21,6,3,1]
[null,null,null,null,null,null,null,null,null,null,null,null,null,null,null,null,null,null,1.7399999000000002,21,5,3,1]
[null,null,null,null,null,null,null,null,null,null,null,null,null,null,null,null,null,null,1.7499999000000002,21,5,2,1]
[null,null,null,null,null,null,null,null,null,null,null,null,null,null,null,null,null,null,1.9399999000000001,21,4,2,1]
[null,null,null,null,null,null,null,null,null,null,null,null,null,null,null,null,null,null,2.1999998999999999,21,3,2,1]
[null,null,null,null,null,null,null,null,null,null,null,null,null,null,null,null,null,null,2.4999998999999997,21,3,1,1]
[null,null,null,null,null,null,null,null,null,null,null,null,null,null,null,null,null,null,2.5399998999999998,21,2,1,1]
[null,null,null,null,null,null,null,null,null,null,null,null,null,null,null,null,null,null,3.7499998999999997,21,1,1,1]
[null,null,null,null,null,null,null,null,null,null,null,null,null,null,null,null,null,null,9.9999998999999988,21,1,1,1]